{"text_format":"1","workbook":"xlsx","n_sheets":7,"sheets":["Accueil création","Listes","BD articles menus","BD menus","Menus midi retraite","Menus journaliers","Menus viande midi weekend"],"not_rendered":{"charts":0,"images":0,"macros":1,"external_links":0,"defined_names":0,"comments":0,"pivot_tables":0},"unopened":[],"bounds":{"document_bytes":16777216,"sheet_cells":100000,"rows_first":2000,"rows_last":500,"rows_between":2000,"halvings":0,"cell_chars":16384,"cell_head_chars":4096},"cells_cut":0,"cells_raw":0,"read":"whole","date_system":"1900"}

{"sheet":"Accueil création","index":0,"n_rows":362,"n_cols":8,"rows_kept":362,"cut":false,"hidden":false,"merged":[]}
[null,null,null,null,null,2023,"Open","Save"]
[null,null,null,null,null,null,"2022-12-15T10:57:30","2022-12-15T10:53:56"]
[null,null,null,null,null,null,"2022-12-15T11:26:37","2022-12-15T10:56:49"]
[null,null,null,null,null,null,"2022-12-15T15:37:59","2022-12-15T10:57:05"]
[null,null,null,null,null,null,"2022-12-15T18:49:56","2022-12-15T11:23:30"]
[null,null,null,null,null,null,"2022-12-16T10:33:13","2022-12-15T11:40:25"]
[null,null,null,null,null,null,"2022-12-16T14:49:41","2022-12-15T16:27:02"]
[null,null,null,null,null,null,"2022-12-16T18:53:15","2022-12-15T19:25:50"]
[null,null,null,null,null,null,"2022-12-17T11:32:31","2022-12-15T19:48:46"]
[null,null,null,null,null,null,"2022-12-17T15:31:50","2022-12-15T21:40:06"]
[null,null,null,null,null,null,"2022-12-17T16:01:18","2022-12-15T22:34:14"]
[null,null,null,null,null,null,"2022-12-18T11:07:03","2022-12-16T10:42:21"]
[null,null,null,null,null,null,"2022-12-18T19:02:59","2022-12-16T15:07:49"]
[null,null,null,null,null,null,"2022-12-19T10:51:54","2022-12-16T15:16:21"]
[null,null,null,null,null,null,"2022-12-19T14:38:54","2022-12-16T16:29:17"]
[null,null,null,null,null,null,"2022-12-20T16:00:23","2022-12-16T21:39:44"]
[null,null,null,null,null,null,"2022-12-20T19:00:12","2022-12-16T21:55:50"]
[null,null,null,null,null,null,"2022-12-20T20:54:26","2022-12-17T11:54:13"]
[null,null,null,null,null,null,"2022-12-23T21:18:41","2022-12-17T12:08:37"]
[null,null,null,null,null,null,"2022-12-31T10:39:23","2022-12-17T15:51:34"]
[null,null,null,null,null,null,"2022-12-31T20:03:14","2022-12-17T16:34:57"]
[null,null,null,null,null,null,"2023-01-01T17:11:10","2022-12-18T11:15:30"]
[null,null,null,null,null,null,"2023-01-02T10:39:47","2022-12-18T12:02:50"]
[null,null,null,null,null,null,"2023-01-03T09:02:26","2022-12-18T21:48:42"]
[null,null,null,null,null,null,"2023-01-03T21:00:06","2022-12-19T12:04:18"]
[null,null,null,null,null,null,"2023-01-04T10:47:08","2022-12-19T12:48:47"]
[null,null,null,null,null,null,"2023-01-08T18:56:20","2022-12-19T14:49:29"]
[null,null,null,null,null,null,"2023-01-11T10:38:28","2022-12-19T21:23:55"]
[null,null,null,null,null,null,"2023-01-11T10:58:18","2022-12-20T19:01:11"]
[null,null,null,null,null,null,"2023-01-11T19:45:32","2022-12-20T21:33:53"]
[null,null,null,null,null,null,"2023-01-12T10:40:18","2022-12-23T21:19:24"]
[null,null,null,null,null,null,"2023-01-12T14:55:59","2022-12-31T11:38:19"]
[null,null,null,null,null,null,"2023-01-12T16:17:21","2022-12-31T11:47:35"]
[null,null,null,null,null,null,"2023-01-13T09:34:17","2022-12-31T12:06:02"]
[null,null,null,null,null,null,"2023-01-13T11:12:45","2022-12-31T20:04:43"]
[null,null,null,null,null,null,"2023-01-13T19:38:00","2022-12-31T23:27:45"]
[null,null,null,null,null,null,"2023-01-13T21:36:11","2023-01-01T17:31:30"]
[null,null,null,null,null,null,"2023-01-14T10:53:49","2023-01-01T18:02:23"]
[null,null,null,null,null,null,"2023-01-14T16:49:05","2023-01-02T11:06:20"]
[null,null,null,null,null,null,"2023-01-15T11:09:43","2023-01-03T09:21:38"]
[null,null,null,null,null,null,"2023-01-15T14:54:15","2023-01-03T09:23:35"]
[null,null,null,null,null,null,"2023-01-16T14:09:17","2023-01-03T09:59:28"]
[null,null,null,null,null,null,"2023-01-16T14:48:19","2023-01-03T21:20:30"]
[null,null,null,null,null,null,"2023-01-16T16:27:17","2023-01-03T21:20:43"]
[null,null,null,null,null,null,"2023-01-16T22:28:59","2023-01-03T21:20:52"]
[null,null,null,null,null,null,"2023-01-16T23:32:03","2023-01-03T21:21:11"]
[null,null,null,null,null,null,"2023-01-17T00:19:31","2023-01-03T21:21:29"]
[null,null,null,null,null,null,"2023-01-17T11:46:09","2023-01-03T21:22:20"]
[null,null,null,null,null,null,"2023-01-19T12:45:40","2023-01-03T21:22:57"]
[null,null,null,null,null,null,"2023-01-19T23:25:16","2023-01-04T10:54:22"]
[null,null,null,null,null,null,"2023-01-20T14:38:34","2023-01-04T11:28:06"]
[null,null,null,null,null,null,"2023-01-20T14:56:03","2023-01-04T11:36:51"]
[null,null,null,null,null,null,"2023-01-20T20:01:19","2023-01-04T11:42:00"]
[null,null,null,null,null,null,"2023-01-20T21:54:43","2023-01-08T19:01:59"]
[null,null,null,null,null,null,"2023-01-21T11:01:09","2023-01-11T10:48:08"]
[null,null,null,null,null,null,"2023-01-21T18:12:11","2023-01-11T11:12:01"]
[null,null,null,null,null,null,"2023-01-21T21:26:32","2023-01-11T11:13:46"]
[null,null,null,null,null,null,"2023-01-21T21:57:41","2023-01-11T11:37:36"]
[null,null,null,null,null,null,"2023-01-22T14:51:42","2023-01-11T19:46:32"]
[null,null,null,null,null,null,"2023-01-22T19:35:20","2023-01-12T11:38:24"]
[null,null,null,null,null,null,"2023-01-22T21:45:45","2023-01-12T12:08:03"]
[null,null,null,null,null,null,"2023-01-23T10:41:59","2023-01-12T15:32:29"]
[null,null,null,null,null,null,"2023-01-23T12:06:20","2023-01-12T16:01:33"]
[null,null,null,null,null,null,"2023-01-23T19:08:43","2023-01-12T18:47:42"]
[null,null,null,null,null,null,"2023-01-24T07:59:27","2023-01-13T09:35:23"]
[null,null,null,null,null,null,"2023-01-24T21:47:13","2023-01-13T11:19:37"]
[null,null,null,null,null,null,"2023-01-25T12:09:25","2023-01-13T19:42:22"]
[null,null,null,null,null,null,"2023-01-25T14:43:26","2023-01-13T20:24:45"]
[null,null,null,null,null,null,"2023-01-25T19:57:10","2023-01-13T21:16:48"]
[null,null,null,null,null,null,"2023-01-26T10:21:10","2023-01-13T21:22:08"]
[null,null,null,null,null,null,"2023-01-26T14:31:47","2023-01-13T21:28:02"]
[null,null,null,null,null,null,"2023-01-26T18:47:46","2023-01-13T21:39:24"]
[null,null,null,null,null,null,"2023-01-26T21:32:14","2023-01-14T11:14:44"]
[null,null,null,null,null,null,"2023-01-27T10:09:30","2023-01-14T11:21:21"]
[null,null,null,null,null,null,"2023-01-27T18:40:27","2023-01-14T11:59:52"]
[null,null,null,null,null,null,"2023-01-27T19:22:31","2023-01-14T12:04:04"]
[null,null,null,null,null,null,"2023-01-27T19:42:53","2023-01-14T12:22:50"]
[null,null,null,null,null,null,"2023-01-28T11:32:45","2023-01-14T17:41:33"]
[null,null,null,null,null,null,"2023-01-28T17:08:34","2023-01-14T18:05:21"]
[null,null,null,null,null,null,"2023-01-29T10:40:41","2023-01-14T18:06:45"]
[null,null,null,null,null,null,"2023-01-29T14:36:09","2023-01-14T18:07:28"]
[null,null,null,null,null,null,"2023-01-29T19:11:36","2023-01-14T19:36:20"]
[null,null,null,null,null,null,"2023-01-29T20:46:41","2023-01-15T11:55:41"]
[null,null,null,null,null,null,"2023-01-30T11:16:38","2023-01-15T12:31:38"]
[null,null,null,null,null,null,"2023-01-30T15:46:12","2023-01-15T15:01:48"]
[null,null,null,null,null,null,"2023-01-30T21:20:52","2023-01-15T15:18:48"]
[null,null,null,null,null,null,"2023-01-31T09:56:28","2023-01-16T14:11:39"]
[null,null,null,null,null,null,"2023-02-05T10:24:31","2023-01-16T14:18:23"]
[null,null,null,null,null,null,"2023-02-05T10:34:09","2023-01-16T14:22:45"]
[null,null,null,null,null,null,"2023-02-05T11:13:25","2023-01-16T14:25:16"]
[null,null,null,null,null,null,"2023-02-05T15:23:45","2023-01-16T14:26:32"]
[null,null,null,null,null,null,"2023-02-05T16:10:14","2023-01-16T14:33:04"]
[null,null,null,null,null,null,"2023-02-05T16:32:13","2023-01-16T14:40:09"]
[null,null,null,null,null,null,"2023-02-05T19:40:57","2023-01-16T14:41:12"]
[null,null,null,null,null,null,"2023-02-06T10:51:29","2023-01-16T14:44:51"]
[null,null,null,null,null,null,"2023-02-06T12:13:28","2023-01-16T14:46:13"]
[null,null,null,null,null,null,"2023-02-06T13:41:09","2023-01-16T14:46:53"]
[null,null,null,null,null,null,"2023-02-07T13:08:55","2023-01-16T14:49:45"]
[null,null,null,null,null,null,"2023-02-08T08:56:49","2023-01-16T16:27:24"]
[null,null,null,null,null,null,"2023-02-08T11:45:00","2023-01-16T22:43:58"]
[null,null,null,null,null,null,"2023-02-08T15:27:17","2023-01-16T22:47:21"]
[null,null,null,null,null,null,"2023-02-08T17:51:11","2023-01-16T22:48:22"]
[null,null,null,null,null,null,"2023-02-09T10:36:57","2023-01-16T22:49:29"]
[null,null,null,null,null,null,"2023-02-10T09:29:55","2023-01-16T22:49:41"]
[null,null,null,null,null,null,"2023-02-10T10:35:13","2023-01-16T22:50:19"]
[null,null,null,null,null,null,"2023-02-10T19:44:43","2023-01-16T22:51:21"]
[null,null,null,null,null,null,"2023-02-11T10:58:13","2023-01-16T22:51:34"]
[null,null,null,null,null,null,"2023-02-11T11:21:00","2023-01-16T22:52:46"]
[null,null,null,null,null,null,"2023-02-11T15:57:55","2023-01-16T22:56:38"]
[null,null,null,null,null,null,"2023-02-11T18:41:28","2023-01-16T23:07:50"]
[null,null,null,null,null,null,"2023-02-12T11:07:29","2023-01-16T23:15:06"]
[null,null,null,null,null,null,"2023-02-12T16:21:05","2023-01-16T23:18:13"]
[null,null,null,null,null,null,"2023-02-12T18:50:16","2023-01-16T23:29:48"]
[null,null,null,null,null,null,"2023-02-13T11:03:09","2023-01-16T23:30:16"]
[null,null,null,null,null,null,"2023-02-13T15:40:10","2023-01-16T23:32:56"]
[null,null,null,null,null,null,"2023-02-14T10:30:36","2023-01-16T23:33:11"]
[null,null,null,null,null,null,"2023-02-15T09:29:12","2023-01-16T23:33:48"]
[null,null,null,null,null,null,"2023-02-15T10:42:45","2023-01-16T23:34:07"]
[null,null,null,null,null,null,"2023-02-15T11:17:30","2023-01-16T23:36:30"]
[null,null,null,null,null,null,"2023-02-15T14:49:08","2023-01-16T23:37:58"]
[null,null,null,null,null,null,"2023-02-15T16:01:08","2023-01-16T23:38:13"]
[null,null,null,null,null,null,"2023-02-15T16:29:49","2023-01-16T23:39:01"]
[null,null,null,null,null,null,"2023-02-15T18:51:21","2023-01-16T23:44:58"]
[null,null,null,null,null,null,"2023-02-16T10:45:34","2023-01-16T23:53:02"]
[null,null,null,null,null,null,"2023-02-17T11:04:51","2023-01-17T00:00:13"]
[null,null,null,null,null,null,"2023-02-17T11:07:44","2023-01-17T00:00:22"]
[null,null,null,null,null,null,"2023-02-17T14:32:38","2023-01-17T00:01:36"]
[null,null,null,null,null,null,"2023-02-18T11:07:12","2023-01-17T00:09:33"]
[null,null,null,null,null,null,"2023-02-18T18:25:30","2023-01-17T00:09:49"]
[null,null,null,null,null,null,"2023-02-19T11:22:47","2023-01-17T00:10:03"]
[null,null,null,null,null,null,"2023-02-19T12:08:29","2023-01-17T00:15:55"]
[null,null,null,null,null,null,"2023-02-19T13:11:18","2023-01-17T00:22:25"]
[null,null,null,null,null,null,"2023-02-19T14:41:34","2023-01-17T00:23:12"]
[null,null,null,null,null,null,"2023-02-19T14:48:21","2023-01-17T00:23:56"]
[null,null,null,null,null,null,"2023-02-20T11:39:29","2023-01-17T00:26:58"]
[null,null,null,null,null,null,"2023-02-22T10:20:23","2023-01-17T00:30:43"]
[null,null,null,null,null,null,"2023-02-22T12:11:01","2023-01-17T00:33:16"]
[null,null,null,null,null,null,"2023-02-22T14:58:39","2023-01-17T00:34:46"]
[null,null,null,null,null,null,"2023-02-22T18:57:47","2023-01-17T00:35:13"]
[null,null,null,null,null,null,"2023-02-23T20:41:24","2023-01-17T00:35:46"]
[null,null,null,null,null,null,"2023-02-24T19:16:08","2023-01-17T11:46:21"]
[null,null,null,null,null,null,"2023-03-01T10:47:19","2023-01-17T12:01:53"]
[null,null,null,null,null,null,"2023-03-02T10:33:50","2023-01-17T12:09:09"]
[null,null,null,null,null,null,"2023-03-02T16:23:04","2023-01-17T12:14:13"]
[null,null,null,null,null,null,"2023-03-02T21:28:08","2023-01-17T12:15:16"]
[null,null,null,null,null,null,"2023-03-03T17:59:30","2023-01-17T12:16:53"]
[null,null,null,null,null,null,"2023-03-05T19:02:19","2023-01-17T12:21:59"]
[null,null,null,null,null,null,"2023-03-08T12:28:09","2023-01-17T12:24:17"]
[null,null,null,null,null,null,null,"2023-01-17T12:25:20"]
[null,null,null,null,null,null,null,"2023-01-17T12:26:08"]
[null,null,null,null,null,null,null,"2023-01-17T12:29:06"]
[null,null,null,null,null,null,null,"2023-01-17T12:32:10"]
[null,null,null,null,null,null,null,"2023-01-17T12:32:25"]
[null,null,null,null,null,null,null,"2023-01-17T12:34:29"]
[null,null,null,null,null,null,null,"2023-01-19T16:29:31"]
[null,null,null,null,null,null,null,"2023-01-19T16:33:48"]
[null,null,null,null,null,null,null,"2023-01-19T16:38:42"]
[null,null,null,null,null,null,null,"2023-01-19T16:39:08"]
[null,null,null,null,null,null,null,"2023-01-19T23:26:12"]
[null,null,null,null,null,null,null,"2023-01-20T14:45:42"]
[null,null,null,null,null,null,null,"2023-01-20T14:52:29"]
[null,null,null,null,null,null,null,"2023-01-20T15:08:30"]
[null,null,null,null,null,null,null,"2023-01-20T15:13:19"]
[null,null,null,null,null,null,null,"2023-01-20T15:33:38"]
[null,null,null,null,null,null,null,"2023-01-20T15:36:12"]
[null,null,null,null,null,null,null,"2023-01-20T15:39:34"]
[null,null,null,null,null,null,null,"2023-01-20T20:49:37"]
[null,null,null,null,null,null,null,"2023-01-20T21:31:36"]
[null,null,null,null,null,null,null,"2023-01-20T21:45:27"]
[null,null,null,null,null,null,null,"2023-01-20T22:08:57"]
[null,null,null,null,null,null,null,"2023-01-21T11:04:51"]
[null,null,null,null,null,null,null,"2023-01-21T11:15:55"]
[null,null,null,null,null,null,null,"2023-01-21T11:21:09"]
[null,null,null,null,null,null,null,"2023-01-21T11:36:11"]
[null,null,null,null,null,null,null,"2023-01-21T11:52:11"]
[null,null,null,null,null,null,null,"2023-01-21T12:30:06"]
[null,null,null,null,null,null,null,"2023-01-21T19:08:07"]
[null,null,null,null,null,null,null,"2023-01-21T21:20:34"]
[null,null,null,null,null,null,null,"2023-01-21T21:55:50"]
[null,null,null,null,null,null,null,"2023-01-21T21:58:39"]
[null,null,null,null,null,null,null,"2023-01-21T21:59:10"]
[null,null,null,null,null,null,null,"2023-01-21T21:59:19"]
[null,null,null,null,null,null,null,"2023-01-22T14:51:54"]
[null,null,null,null,null,null,null,"2023-01-22T15:03:24"]
[null,null,null,null,null,null,null,"2023-01-22T15:14:42"]
[null,null,null,null,null,null,null,"2023-01-22T19:13:14"]
[null,null,null,null,null,null,null,"2023-01-22T20:30:51"]
[null,null,null,null,null,null,null,"2023-01-22T20:46:15"]
[null,null,null,null,null,null,null,"2023-01-22T20:52:06"]
[null,null,null,null,null,null,null,"2023-01-22T21:01:46"]
[null,null,null,null,null,null,null,"2023-01-22T21:07:38"]
[null,null,null,null,null,null,null,"2023-01-22T21:17:45"]
[null,null,null,null,null,null,null,"2023-01-22T21:38:31"]
[null,null,null,null,null,null,null,"2023-01-22T22:43:03"]
[null,null,null,null,null,null,null,"2023-01-23T11:01:12"]
[null,null,null,null,null,null,null,"2023-01-23T11:15:36"]
[null,null,null,null,null,null,null,"2023-01-23T11:26:52"]
[null,null,null,null,null,null,null,"2023-01-23T13:34:35"]
[null,null,null,null,null,null,null,"2023-01-23T21:10:38"]
[null,null,null,null,null,null,null,"2023-01-23T21:11:14"]
[null,null,null,null,null,null,null,"2023-01-24T08:01:08"]
[null,null,null,null,null,null,null,"2023-01-24T22:18:10"]
[null,null,null,null,null,null,null,"2023-01-24T22:27:00"]
[null,null,null,null,null,null,null,"2023-01-24T22:29:20"]
[null,null,null,null,null,null,null,"2023-01-24T22:29:52"]
[null,null,null,null,null,null,null,"2023-01-25T12:39:12"]
[null,null,null,null,null,null,null,"2023-01-25T13:36:44"]
[null,null,null,null,null,null,null,"2023-01-25T13:37:48"]
[null,null,null,null,null,null,null,"2023-01-25T14:55:19"]
[null,null,null,null,null,null,null,"2023-01-25T15:22:50"]
[null,null,null,null,null,null,null,"2023-01-25T19:19:19"]
[null,null,null,null,null,null,null,"2023-01-25T19:44:06"]
[null,null,null,null,null,null,null,"2023-01-25T19:54:52"]
[null,null,null,null,null,null,null,"2023-01-25T19:58:26"]
[null,null,null,null,null,null,null,"2023-01-25T21:23:46"]
[null,null,null,null,null,null,null,"2023-01-25T21:51:17"]
[null,null,null,null,null,null,null,"2023-01-26T10:30:50"]
[null,null,null,null,null,null,null,"2023-01-26T10:38:07"]
[null,null,null,null,null,null,null,"2023-01-26T10:56:37"]
[null,null,null,null,null,null,null,"2023-01-26T11:19:06"]
[null,null,null,null,null,null,null,"2023-01-26T11:55:16"]
[null,null,null,null,null,null,null,"2023-01-26T12:20:11"]
[null,null,null,null,null,null,null,"2023-01-26T14:57:57"]
[null,null,null,null,null,null,null,"2023-01-26T15:05:57"]
[null,null,null,null,null,null,null,"2023-01-26T15:29:00"]
[null,null,null,null,null,null,null,"2023-01-26T15:40:28"]
[null,null,null,null,null,null,null,"2023-01-26T15:58:20"]
[null,null,null,null,null,null,null,"2023-01-26T16:15:44"]
[null,null,null,null,null,null,null,"2023-01-26T16:30:42"]
[null,null,null,null,null,null,null,"2023-01-26T19:39:21"]
[null,null,null,null,null,null,null,"2023-01-26T21:27:21"]
[null,null,null,null,null,null,null,"2023-01-26T21:41:17"]
[null,null,null,null,null,null,null,"2023-01-26T21:53:59"]
[null,null,null,null,null,null,null,"2023-01-26T22:07:33"]
[null,null,null,null,null,null,null,"2023-01-26T22:07:44"]
[null,null,null,null,null,null,null,"2023-01-27T10:20:49"]
[null,null,null,null,null,null,null,"2023-01-27T10:22:52"]
[null,null,null,null,null,null,null,"2023-01-27T10:46:41"]
[null,null,null,null,null,null,null,"2023-01-27T11:04:59"]
[null,null,null,null,null,null,null,"2023-01-27T11:43:33"]
[null,null,null,null,null,null,null,"2023-01-27T18:52:05"]
[null,null,null,null,null,null,null,"2023-01-27T19:28:24"]
[null,null,null,null,null,null,null,"2023-01-27T21:33:47"]
[null,null,null,null,null,null,null,"2023-01-28T12:53:15"]
[null,null,null,null,null,null,null,"2023-01-28T18:01:49"]
[null,null,null,null,null,null,null,"2023-01-28T18:23:01"]
[null,null,null,null,null,null,null,"2023-01-28T19:46:05"]
[null,null,null,null,null,null,null,"2023-01-28T21:30:49"]
[null,null,null,null,null,null,null,"2023-01-28T22:04:59"]
[null,null,null,null,null,null,null,"2023-01-29T13:01:45"]
[null,null,null,null,null,null,null,"2023-01-29T13:06:07"]
[null,null,null,null,null,null,null,"2023-01-29T16:28:44"]
[null,null,null,null,null,null,null,"2023-01-29T19:18:04"]
[null,null,null,null,null,null,null,"2023-01-29T19:55:02"]
[null,null,null,null,null,null,null,"2023-01-29T21:35:27"]
[null,null,null,null,null,null,null,"2023-01-29T21:36:04"]
[null,null,null,null,null,null,null,"2023-01-30T12:01:01"]
[null,null,null,null,null,null,null,"2023-01-30T13:31:17"]
[null,null,null,null,null,null,null,"2023-01-30T16:37:19"]
[null,null,null,null,null,null,null,"2023-01-30T21:22:54"]
[null,null,null,null,null,null,null,"2023-01-30T21:30:12"]
[null,null,null,null,null,null,null,"2023-01-31T09:56:39"]
[null,null,null,null,null,null,null,"2023-02-05T10:29:46"]
[null,null,null,null,null,null,null,"2023-02-05T10:43:35"]
[null,null,null,null,null,null,null,"2023-02-05T11:41:04"]
[null,null,null,null,null,null,null,"2023-02-05T11:50:24"]
[null,null,null,null,null,null,null,"2023-02-05T13:27:57"]
[null,null,null,null,null,null,null,"2023-02-05T15:39:38"]
[null,null,null,null,null,null,null,"2023-02-05T15:49:58"]
[null,null,null,null,null,null,null,"2023-02-05T15:57:07"]
[null,null,null,null,null,null,null,"2023-02-05T16:12:37"]
[null,null,null,null,null,null,null,"2023-02-05T16:13:52"]
[null,null,null,null,null,null,null,"2023-02-05T16:30:51"]
[null,null,null,null,null,null,null,"2023-02-05T16:39:30"]
[null,null,null,null,null,null,null,"2023-02-05T20:45:37"]
[null,null,null,null,null,null,null,"2023-02-06T11:30:02"]
[null,null,null,null,null,null,null,"2023-02-06T12:19:31"]
[null,null,null,null,null,null,null,"2023-02-06T17:07:44"]
[null,null,null,null,null,null,null,"2023-02-07T13:08:58"]
[null,null,null,null,null,null,null,"2023-02-07T13:13:29"]
[null,null,null,null,null,null,null,"2023-02-08T09:08:40"]
[null,null,null,null,null,null,null,"2023-02-08T11:56:20"]
[null,null,null,null,null,null,null,"2023-02-08T16:20:32"]
[null,null,null,null,null,null,null,"2023-02-08T16:31:03"]
[null,null,null,null,null,null,null,"2023-02-08T17:57:42"]
[null,null,null,null,null,null,null,"2023-02-08T19:48:36"]
[null,null,null,null,null,null,null,"2023-02-08T21:19:39"]
[null,null,null,null,null,null,null,"2023-02-09T11:09:25"]
[null,null,null,null,null,null,null,"2023-02-10T09:35:52"]
[null,null,null,null,null,null,null,"2023-02-10T10:39:47"]
[null,null,null,null,null,null,null,"2023-02-10T11:31:17"]
[null,null,null,null,null,null,null,"2023-02-10T19:53:34"]
[null,null,null,null,null,null,null,"2023-02-10T21:20:25"]
[null,null,null,null,null,null,null,"2023-02-11T11:03:49"]
[null,null,null,null,null,null,null,"2023-02-11T12:02:36"]
[null,null,null,null,null,null,null,"2023-02-11T12:27:44"]
[null,null,null,null,null,null,null,"2023-02-11T16:37:46"]
[null,null,null,null,null,null,null,"2023-02-11T21:20:40"]
[null,null,null,null,null,null,null,"2023-02-12T12:04:16"]
[null,null,null,null,null,null,null,"2023-02-12T12:48:11"]
[null,null,null,null,null,null,null,"2023-02-12T16:41:26"]
[null,null,null,null,null,null,null,"2023-02-12T16:54:39"]
[null,null,null,null,null,null,null,"2023-02-12T17:28:49"]
[null,null,null,null,null,null,null,"2023-02-12T20:00:44"]
[null,null,null,null,null,null,null,"2023-02-13T11:14:03"]
[null,null,null,null,null,null,null,"2023-02-13T15:57:27"]
[null,null,null,null,null,null,null,"2023-02-14T10:42:21"]
[null,null,null,null,null,null,null,"2023-02-15T09:33:15"]
[null,null,null,null,null,null,null,"2023-02-15T10:53:05"]
[null,null,null,null,null,null,null,"2023-02-15T11:25:58"]
[null,null,null,null,null,null,null,"2023-02-15T14:57:08"]
[null,null,null,null,null,null,null,"2023-02-15T14:58:03"]
[null,null,null,null,null,null,null,"2023-02-15T16:07:51"]
[null,null,null,null,null,null,null,"2023-02-15T16:39:38"]
[null,null,null,null,null,null,null,"2023-02-15T18:51:28"]
[null,null,null,null,null,null,null,"2023-02-16T11:03:22"]
[null,null,null,null,null,null,null,"2023-02-17T11:06:02"]
[null,null,null,null,null,null,null,"2023-02-17T11:18:08"]
[null,null,null,null,null,null,null,"2023-02-17T11:23:21"]
[null,null,null,null,null,null,null,"2023-02-17T11:26:43"]
[null,null,null,null,null,null,null,"2023-02-17T12:18:59"]
[null,null,null,null,null,null,null,"2023-02-17T15:31:32"]
[null,null,null,null,null,null,null,"2023-02-17T16:05:56"]
[null,null,null,null,null,null,null,"2023-02-17T16:19:02"]
[null,null,null,null,null,null,null,"2023-02-18T11:29:00"]
[null,null,null,null,null,null,null,"2023-02-18T12:57:26"]
[null,null,null,null,null,null,null,"2023-02-18T21:42:35"]
[null,null,null,null,null,null,null,"2023-02-19T11:28:33"]
[null,null,null,null,null,null,null,"2023-02-19T12:23:14"]
[null,null,null,null,null,null,null,"2023-02-19T13:31:22"]
[null,null,null,null,null,null,null,"2023-02-19T14:48:09"]
[null,null,null,null,null,null,null,"2023-02-19T14:49:59"]
[null,null,null,null,null,null,null,"2023-02-19T16:21:14"]
[null,null,null,null,null,null,null,"2023-02-19T16:30:59"]
[null,null,null,null,null,null,null,"2023-02-20T13:32:14"]
[null,null,null,null,null,null,null,"2023-02-22T10:35:22"]
[null,null,null,null,null,null,null,"2023-02-22T10:39:59"]
[null,null,null,null,null,null,null,"2023-02-22T10:40:08"]
[null,null,null,null,null,null,null,"2023-02-22T12:40:42"]
[null,null,null,null,null,null,null,"2023-02-22T16:26:45"]
[null,null,null,null,null,null,null,"2023-02-22T21:13:19"]
[null,null,null,null,null,null,null,"2023-02-22T21:14:18"]
[null,null,null,null,null,null,null,"2023-02-22T21:22:04"]
[null,null,null,null,null,null,null,"2023-02-23T20:43:37"]
[null,null,null,null,null,null,null,"2023-02-24T19:32:05"]
[null,null,null,null,null,null,null,"2023-03-01T11:01:32"]
[null,null,null,null,null,null,null,"2023-03-01T11:39:15"]
[null,null,null,null,null,null,null,"2023-03-02T11:48:40"]
[null,null,null,null,null,null,null,"2023-03-02T12:32:49"]
[null,null,null,null,null,null,null,"2023-03-02T12:35:46"]
[null,null,null,null,null,null,null,"2023-03-02T12:36:35"]
[null,null,null,null,null,null,null,"2023-03-02T12:37:23"]
[null,null,null,null,null,null,null,"2023-03-02T12:46:27"]
[null,null,null,null,null,null,null,"2023-03-02T16:37:02"]
[null,null,null,null,null,null,null,"2023-03-02T21:33:04"]
[null,null,null,null,null,null,null,"2023-03-03T19:34:11"]
[null,null,null,null,null,null,null,"2023-03-03T19:37:46"]
[null,null,null,null,null,null,null,"2023-03-03T19:52:17"]
[null,null,null,null,null,null,null,"2023-03-03T21:47:22"]
[null,null,null,null,null,null,null,"2023-03-03T21:49:36"]
[null,null,null,null,null,null,null,"2023-03-05T19:50:36"]
[null,null,null,null,null,null,null,"2023-03-08T12:43:22"]

{"sheet":"Listes","index":1,"n_rows":121,"n_cols":23,"rows_kept":121,"cut":false,"hidden":false,"merged":[]}
[]
[]
["Nom nature création","Code nature création",null,"Nom nature article menu","Code nature article menu",null,"Code produit","Nom produit","Libellé produit","Clé produit",null,"Nom période","Code période",null,"Nom conditionnement","Code conditionnement",null,"Nom mois",null,"Nom période menu viande midi weekend",null,"Nom jours fériés","Date jours fériés"]
["Création articles menus","CAM",null,"Dessert midi retraite","DMR",null,"DMR01","Pomme","Dessert midi retraite",{"$f":"TabProduits[[#This Row],[Nom produit]]&TabProduits[[#This Row],[Libellé produit]]","v":"PommeDessert midi retraite"},null,"Dimanche midi","PAM01",null,"1 bocal ou 1 boîte pour 1 repas","CAM01",null,"Janvier",null,"Premier semestre",null,"Jour de l'an",{"$f":"DATE(YEAR(TODAY()),1,1)","v":"2023-01-01"}]
["Création menus","CM",null,"Dessert soir","DS",null,"DS01","Pomme","Dessert soir",{"$f":"TabProduits[[#This Row],[Nom produit]]&TabProduits[[#This Row],[Libellé produit]]","v":"PommeDessert soir"},null,"Dimanche midi et soir","PAM02",null,"1 boîte de 6 œufs. 3 œufs pour 1 repas","CAM02",null,"Février",null,"Deuxième semestre",null,"Pâques",{"$f":"DATE(YEAR(W4),3,29.56+0.979*MOD(204-11*MOD(YEAR(W4),19),30)-WEEKDAY(DATE(YEAR(W4),3,28.56+0.979*MOD(204-11*MOD(YEAR(W4),19),30))))","v":"2023-04-09"}]
["Création articles budgets","CAB",null,"Desserts weekend","DW",null,"DW01","Ananas","Desserts weekend",{"$f":"TabProduits[[#This Row],[Nom produit]]&TabProduits[[#This Row],[Libellé produit]]","v":"AnanasDesserts weekend"},null,"Dimanche soir","PAM03",null,"1 boîte ou 1 pot pour 1 repas","CAM03",null,"Mars",null,null,null,"Lundi de Pâques",{"$f":"W5+1","v":"2023-04-10"}]
["Création budgets","CB",null,"Légumes midi retraite","LMR",null,"DW02","Autres fruits","Desserts weekend",{"$f":"TabProduits[[#This Row],[Nom produit]]&TabProduits[[#This Row],[Libellé produit]]","v":"Autres fruitsDesserts weekend"},null,"Lundi à dimanche soirs","PAM04",null,"1 boîte pour 1 repas","CAM04",null,"Avril",null,null,null,"Fête du travail",{"$f":"DATE(YEAR(TODAY()),5,1)","v":"2023-05-01"}]
["Menu midi retraite","MMR",null,"Légumes soirs lundi mardi","LSLM",null,"DW03","Avocats","Desserts weekend",{"$f":"TabProduits[[#This Row],[Nom produit]]&TabProduits[[#This Row],[Libellé produit]]","v":"AvocatsDesserts weekend"},null,"Lundi à vendredi midis","PAM05",null,"1 boîte pour 2 repas","CAM05",null,"Mai",null,null,null,"Victoire 1945",{"$f":"DATE(YEAR(TODAY()),5,8)","v":"2023-05-08"}]
["Menu journalier","MJ",null,"Légumes soirs mercredi jeudi","LSMJ",null,"DW04","Bananes","Desserts weekend",{"$f":"TabProduits[[#This Row],[Nom produit]]&TabProduits[[#This Row],[Libellé produit]]","v":"BananesDesserts weekend"},null,"Lundi à vendredi soirs","PAM06",null,"1 botte ou 1 sachet pour 1 repas","CAM06",null,"Juin",null,null,null,"Jeudi de l'ascension",{"$f":"W6+38","v":"2023-05-18"}]
["Menu viande midi weekend","MVMW",null,"Légumes soirs vendredi","LSV",null,"DW05","Clémentines","Desserts weekend",{"$f":"TabProduits[[#This Row],[Nom produit]]&TabProduits[[#This Row],[Libellé produit]]","v":"ClémentinesDesserts weekend"},null,"Lundi et mardi soirs","PAM07",null,"1 botte ou 1 sachet pour 2 repas","CAM07",null,"Juillet",null,null,null,"Pentecôte",{"$f":"W5+49","v":"2023-05-28"}]
["Dépenses alimentaires","DA",null,"Légumes weekend samedi","LWS",null,"DW06","Crème","Desserts weekend",{"$f":"TabProduits[[#This Row],[Nom produit]]&TabProduits[[#This Row],[Libellé produit]]","v":"CrèmeDesserts weekend"},null,"Mercredi et jeudi soirs","PAM08",null,"1 morceau de 400 grammes (Leclerc) pour 3 repas","CAM08",null,"Août",null,null,null,"Lundi de Pentecôte",{"$f":"W10+1","v":"2023-05-29"}]
["Dépenses bancaires","DB",null,"Légumes weekend dimanche","LWD",null,"DW07","Dattes","Desserts weekend",{"$f":"TabProduits[[#This Row],[Nom produit]]&TabProduits[[#This Row],[Libellé produit]]","v":"DattesDesserts weekend"},null,"Samedi et dimanche midis","PAM09",null,"1 morceau de 500 grammes pour 5 repas","CAM09",null,"Septembre",null,null,null,"Fête nationale",{"$f":"DATE(YEAR(TODAY()),7,14)","v":"2023-07-14"}]
["Dépenses horticoles","DH",null,"Viande menu midi retraite","VMR",null,"DW08","Figues","Desserts weekend",{"$f":"TabProduits[[#This Row],[Nom produit]]&TabProduits[[#This Row],[Libellé produit]]","v":"FiguesDesserts weekend"},null,"Samedi et dimanche midis et soirs","PAM10",null,"1 pack de 4 pots pour le weekend. 1 pot pour 1 repas","CAM10",null,"Octobre",null,null,null,"Assomption",{"$f":"DATE(YEAR(TODAY()),8,15)","v":"2023-08-15"}]
["Dépenses médicales","DM",null,"Viande menu midi weekend","VMW",null,"DW09","Fromage blanc","Desserts weekend",{"$f":"TabProduits[[#This Row],[Nom produit]]&TabProduits[[#This Row],[Libellé produit]]","v":"Fromage blancDesserts weekend"},null,"Samedi midi et soir","PAM11",null,"1 pack de 6 pots. 3 pots pour 1 repas","CAM11",null,"Novembre",null,null,null,"Toussaint",{"$f":"DATE(YEAR(TODAY()),11,1)","v":"2023-11-01"}]
["Dépenses non alimentaires","DNA",null,"Viande menu soir","VS",null,"DW10","Fruits au sirop","Desserts weekend",{"$f":"TabProduits[[#This Row],[Nom produit]]&TabProduits[[#This Row],[Libellé produit]]","v":"Fruits au siropDesserts weekend"},null,"Vendredi soir","PAM12",null,"1 paquet pour 1 repas","CAM12",null,"Décembre",null,null,null,"Armistice 1918",{"$f":"DATE(YEAR(TODAY()),11,11)","v":"2023-11-11"}]
["Recettes bancaires","RB",null,null,null,null,"DW11","Fruits de saison","Desserts weekend",{"$f":"TabProduits[[#This Row],[Nom produit]]&TabProduits[[#This Row],[Libellé produit]]","v":"Fruits de saisonDesserts weekend"},null,null,null,null,"1 paquet pour 2 repas","CAM13",null,null,null,null,null,"Noël",{"$f":"DATE(YEAR(TODAY()),12,25)","v":"2023-12-25"}]
["Recettes médicales","RM",null,null,null,null,"DW12","Gâteau de riz","Desserts weekend",{"$f":"TabProduits[[#This Row],[Nom produit]]&TabProduits[[#This Row],[Libellé produit]]","v":"Gâteau de rizDesserts weekend"},null,null,null,null,"1 paquet pour 2 repas. 1 ou 2 saucisses pour 1 repas","CAM14"]
["Recettes numéraires","RN",null,null,null,null,"DW13","Gâteau de semoule","Desserts weekend",{"$f":"TabProduits[[#This Row],[Nom produit]]&TabProduits[[#This Row],[Libellé produit]]","v":"Gâteau de semouleDesserts weekend"},null,null,null,null,"1 paquet pour 4 repas","CAM15"]
["Création articles budgets","CAB",null,null,null,null,"DW14","Gâteaux samedi dimanche","Desserts weekend",{"$f":"TabProduits[[#This Row],[Nom produit]]&TabProduits[[#This Row],[Libellé produit]]","v":"Gâteaux samedi dimancheDesserts weekend"},null,null,null,null,"1 paquet pour 5 repas (Betteraves rouges)","CAM16"]
["Saisie opérations numéraires","SON",null,null,null,null,"DW15","Mousse au chocolat","Desserts weekend",{"$f":"TabProduits[[#This Row],[Nom produit]]&TabProduits[[#This Row],[Libellé produit]]","v":"Mousse au chocolatDesserts weekend"},null,null,null,null,"1 sachet de 2 kilogrammes. 1 pomme pour 1 repas","CAM17"]
["Saisie opérations bancaires","SOB",null,null,null,null,"DW16","Oranges","Desserts weekend",{"$f":"TabProduits[[#This Row],[Nom produit]]&TabProduits[[#This Row],[Libellé produit]]","v":"OrangesDesserts weekend"},null,null,null,null,"1 sachet pour 2 repas (Chips)","CAM18"]
[null,null,null,null,null,null,"DW17","Petits suisses","Desserts weekend",{"$f":"TabProduits[[#This Row],[Nom produit]]&TabProduits[[#This Row],[Libellé produit]]","v":"Petits suissesDesserts weekend"},null,null,null,null,"1 sachet pour 4 repas","CAM19"]
[null,null,null,null,null,null,"DW18","Pruneaux","Desserts weekend",{"$f":"TabProduits[[#This Row],[Nom produit]]&TabProduits[[#This Row],[Libellé produit]]","v":"PruneauxDesserts weekend"},null,null,null,null,"1 sachet pour 6 repas. 5 tranches par repas (Saucisson)","CAM20"]
[null,null,null,null,null,null,"DW19","Riz au lait","Desserts weekend",{"$f":"TabProduits[[#This Row],[Nom produit]]&TabProduits[[#This Row],[Libellé produit]]","v":"Riz au laitDesserts weekend"},null,null,null,null,"1 tranche pour 1 repas","CAM21"]
[null,null,null,null,null,null,"DW20","Tapioca","Desserts weekend",{"$f":"TabProduits[[#This Row],[Nom produit]]&TabProduits[[#This Row],[Libellé produit]]","v":"TapiocaDesserts weekend"},null,null,null,null,"1 tranche pour 2 repas","CAM22"]
[null,null,null,null,null,null,"DW21","Yaourts","Desserts weekend",{"$f":"TabProduits[[#This Row],[Nom produit]]&TabProduits[[#This Row],[Libellé produit]]","v":"YaourtsDesserts weekend"},null,null,null,null,"125 grammes pour 1 repas (Bifteck haché de cheval)","CAM23"]
[null,null,null,null,null,null,"LMR01","Asperges","Légumes midi retraite",{"$f":"TabProduits[[#This Row],[Nom produit]]&TabProduits[[#This Row],[Libellé produit]]","v":"AspergesLégumes midi retraite"},null,null,null,null,"20 frites pour 1 repas","CAM24"]
[null,null,null,null,null,null,"LMR02","Avocat","Légumes midi retraite",{"$f":"TabProduits[[#This Row],[Nom produit]]&TabProduits[[#This Row],[Libellé produit]]","v":"AvocatLégumes midi retraite"},null,null,null,null,"25 grammes pour 1 repas","CAM25"]
[null,null,null,null,null,null,"LMR03","Carottes","Légumes midi retraite",{"$f":"TabProduits[[#This Row],[Nom produit]]&TabProduits[[#This Row],[Libellé produit]]","v":"CarottesLégumes midi retraite"},null,null,null,null,"3 tranches pour 1 repas","CAM26"]
[null,null,null,null,null,null,"LMR04","Céleri","Légumes midi retraite",{"$f":"TabProduits[[#This Row],[Nom produit]]&TabProduits[[#This Row],[Libellé produit]]","v":"CéleriLégumes midi retraite"},null,null,null,null,"5 cuillères pour 1 repas","CAM27"]
[null,null,null,null,null,null,"LMR05","Champignons","Légumes midi retraite",{"$f":"TabProduits[[#This Row],[Nom produit]]&TabProduits[[#This Row],[Libellé produit]]","v":"ChampignonsLégumes midi retraite"},null,null,null,null,"50 grammes pour 1 repas","CAM28"]
[null,null,null,null,null,null,"LMR06","Concombre","Légumes midi retraite",{"$f":"TabProduits[[#This Row],[Nom produit]]&TabProduits[[#This Row],[Libellé produit]]","v":"ConcombreLégumes midi retraite"},null,null,null,null,"Unité : 1 branche pour 1 repas","CAM29"]
[null,null,null,null,null,null,"LMR07","Couscous","Légumes midi retraite",{"$f":"TabProduits[[#This Row],[Nom produit]]&TabProduits[[#This Row],[Libellé produit]]","v":"CouscousLégumes midi retraite"},null,null,null,null,"Unité : 1 morceau pour 2 repas","CAM30"]
[null,null,null,null,null,null,"LMR08","Maïs","Légumes midi retraite",{"$f":"TabProduits[[#This Row],[Nom produit]]&TabProduits[[#This Row],[Libellé produit]]","v":"MaïsLégumes midi retraite"},null,null,null,null,"Unité : 1 pour 1 repas","CAM31"]
[null,null,null,null,null,null,"LMR09","Pâtes à la sauce tomates","Légumes midi retraite",{"$f":"TabProduits[[#This Row],[Nom produit]]&TabProduits[[#This Row],[Libellé produit]]","v":"Pâtes à la sauce tomatesLégumes midi retraite"},null,null,null,null,"Unité : 1 pour 2 repas","CAM32"]
[null,null,null,null,null,null,"LMR10","Pâtes au beurre","Légumes midi retraite",{"$f":"TabProduits[[#This Row],[Nom produit]]&TabProduits[[#This Row],[Libellé produit]]","v":"Pâtes au beurreLégumes midi retraite"},null,null,null,null,"Unité : 1 pour 4 repas","CAM33"]
[null,null,null,null,null,null,"LMR11","Poireau","Légumes midi retraite",{"$f":"TabProduits[[#This Row],[Nom produit]]&TabProduits[[#This Row],[Libellé produit]]","v":"PoireauLégumes midi retraite"},null,null,null,null,"Unité : 1 tête pour 1 repas","CAM34"]
[null,null,null,null,null,null,"LMR12","Pomme de terre","Légumes midi retraite",{"$f":"TabProduits[[#This Row],[Nom produit]]&TabProduits[[#This Row],[Libellé produit]]","v":"Pomme de terreLégumes midi retraite"},null,null,null,null,"Unité : 2 à 4 pour 1 repas","CAM35"]
[null,null,null,null,null,null,"LMR13","Purée","Légumes midi retraite",{"$f":"TabProduits[[#This Row],[Nom produit]]&TabProduits[[#This Row],[Libellé produit]]","v":"PuréeLégumes midi retraite"},null,null,null,null,"Unité : 2 pour 1 repas","CAM36"]
[null,null,null,null,null,null,"LMR14","Radis","Légumes midi retraite",{"$f":"TabProduits[[#This Row],[Nom produit]]&TabProduits[[#This Row],[Libellé produit]]","v":"RadisLégumes midi retraite"}]
[null,null,null,null,null,null,"LMR15","Riz","Légumes midi retraite",{"$f":"TabProduits[[#This Row],[Nom produit]]&TabProduits[[#This Row],[Libellé produit]]","v":"RizLégumes midi retraite"}]
[null,null,null,null,null,null,"LMR16","Salade","Légumes midi retraite",{"$f":"TabProduits[[#This Row],[Nom produit]]&TabProduits[[#This Row],[Libellé produit]]","v":"SaladeLégumes midi retraite"}]
[null,null,null,null,null,null,"LMR17","Tomates","Légumes midi retraite",{"$f":"TabProduits[[#This Row],[Nom produit]]&TabProduits[[#This Row],[Libellé produit]]","v":"TomatesLégumes midi retraite"}]
[null,null,null,null,null,null,"LSLM01","Cassoulet","Légumes soirs lundi mardi",{"$f":"TabProduits[[#This Row],[Nom produit]]&TabProduits[[#This Row],[Libellé produit]]","v":"CassouletLégumes soirs lundi mardi"}]
[null,null,null,null,null,null,"LSLM02","Choucroute","Légumes soirs lundi mardi",{"$f":"TabProduits[[#This Row],[Nom produit]]&TabProduits[[#This Row],[Libellé produit]]","v":"ChoucrouteLégumes soirs lundi mardi"}]
[null,null,null,null,null,null,"LSLM03","Chou-fleur","Légumes soirs lundi mardi",{"$f":"TabProduits[[#This Row],[Nom produit]]&TabProduits[[#This Row],[Libellé produit]]","v":"Chou-fleurLégumes soirs lundi mardi"}]
[null,null,null,null,null,null,"LSLM04","Choux de Bruxelles","Légumes soirs lundi mardi",{"$f":"TabProduits[[#This Row],[Nom produit]]&TabProduits[[#This Row],[Libellé produit]]","v":"Choux de BruxellesLégumes soirs lundi mardi"}]
[null,null,null,null,null,null,"LSLM05","Couscous","Légumes soirs lundi mardi",{"$f":"TabProduits[[#This Row],[Nom produit]]&TabProduits[[#This Row],[Libellé produit]]","v":"CouscousLégumes soirs lundi mardi"}]
[null,null,null,null,null,null,"LSLM06","Endives","Légumes soirs lundi mardi",{"$f":"TabProduits[[#This Row],[Nom produit]]&TabProduits[[#This Row],[Libellé produit]]","v":"EndivesLégumes soirs lundi mardi"}]
[null,null,null,null,null,null,"LSLM07","Haricots verts","Légumes soirs lundi mardi",{"$f":"TabProduits[[#This Row],[Nom produit]]&TabProduits[[#This Row],[Libellé produit]]","v":"Haricots vertsLégumes soirs lundi mardi"}]
[null,null,null,null,null,null,"LSLM08","Maïs","Légumes soirs lundi mardi",{"$f":"TabProduits[[#This Row],[Nom produit]]&TabProduits[[#This Row],[Libellé produit]]","v":"MaïsLégumes soirs lundi mardi"}]
[null,null,null,null,null,null,"LSLM09","Paella","Légumes soirs lundi mardi",{"$f":"TabProduits[[#This Row],[Nom produit]]&TabProduits[[#This Row],[Libellé produit]]","v":"PaellaLégumes soirs lundi mardi"}]
[null,null,null,null,null,null,"LSLM10","Poireau","Légumes soirs lundi mardi",{"$f":"TabProduits[[#This Row],[Nom produit]]&TabProduits[[#This Row],[Libellé produit]]","v":"PoireauLégumes soirs lundi mardi"}]
[null,null,null,null,null,null,"LSLM11","Pomme de terre","Légumes soirs lundi mardi",{"$f":"TabProduits[[#This Row],[Nom produit]]&TabProduits[[#This Row],[Libellé produit]]","v":"Pomme de terreLégumes soirs lundi mardi"}]
[null,null,null,null,null,null,"LSLM12","Purée","Légumes soirs lundi mardi",{"$f":"TabProduits[[#This Row],[Nom produit]]&TabProduits[[#This Row],[Libellé produit]]","v":"PuréeLégumes soirs lundi mardi"}]
[null,null,null,null,null,null,"LSLM13","Quenelles","Légumes soirs lundi mardi",{"$f":"TabProduits[[#This Row],[Nom produit]]&TabProduits[[#This Row],[Libellé produit]]","v":"QuenellesLégumes soirs lundi mardi"}]
[null,null,null,null,null,null,"LSLM14","Riz","Légumes soirs lundi mardi",{"$f":"TabProduits[[#This Row],[Nom produit]]&TabProduits[[#This Row],[Libellé produit]]","v":"RizLégumes soirs lundi mardi"}]
[null,null,null,null,null,null,"LSMJ01","Macédoine de légumes","Légumes soirs mercredi jeudi",{"$f":"TabProduits[[#This Row],[Nom produit]]&TabProduits[[#This Row],[Libellé produit]]","v":"Macédoine de légumesLégumes soirs mercredi jeudi"}]
[null,null,null,null,null,null,"LSMJ02","Petits pois","Légumes soirs mercredi jeudi",{"$f":"TabProduits[[#This Row],[Nom produit]]&TabProduits[[#This Row],[Libellé produit]]","v":"Petits poisLégumes soirs mercredi jeudi"}]
[null,null,null,null,null,null,"LSMJ03","Petits pois et jeunes carottes","Légumes soirs mercredi jeudi",{"$f":"TabProduits[[#This Row],[Nom produit]]&TabProduits[[#This Row],[Libellé produit]]","v":"Petits pois et jeunes carottesLégumes soirs mercredi jeudi"}]
[null,null,null,null,null,null,"LSMJ04","Ratatouille","Légumes soirs mercredi jeudi",{"$f":"TabProduits[[#This Row],[Nom produit]]&TabProduits[[#This Row],[Libellé produit]]","v":"RatatouilleLégumes soirs mercredi jeudi"}]
[null,null,null,null,null,null,"LSMJ05","Raviolis","Légumes soirs mercredi jeudi",{"$f":"TabProduits[[#This Row],[Nom produit]]&TabProduits[[#This Row],[Libellé produit]]","v":"RaviolisLégumes soirs mercredi jeudi"}]
[null,null,null,null,null,null,"LSMJ06","Tomates pelées","Légumes soirs mercredi jeudi",{"$f":"TabProduits[[#This Row],[Nom produit]]&TabProduits[[#This Row],[Libellé produit]]","v":"Tomates peléesLégumes soirs mercredi jeudi"}]
[null,null,null,null,null,null,"LSV01","Asperges","Légumes soirs vendredi",{"$f":"TabProduits[[#This Row],[Nom produit]]&TabProduits[[#This Row],[Libellé produit]]","v":"AspergesLégumes soirs vendredi"}]
[null,null,null,null,null,null,"LSV02","Avocat","Légumes soirs vendredi",{"$f":"TabProduits[[#This Row],[Nom produit]]&TabProduits[[#This Row],[Libellé produit]]","v":"AvocatLégumes soirs vendredi"}]
[null,null,null,null,null,null,"LSV03","Betterave rouge","Légumes soirs vendredi",{"$f":"TabProduits[[#This Row],[Nom produit]]&TabProduits[[#This Row],[Libellé produit]]","v":"Betterave rougeLégumes soirs vendredi"}]
[null,null,null,null,null,null,"LSV04","Carottes","Légumes soirs vendredi",{"$f":"TabProduits[[#This Row],[Nom produit]]&TabProduits[[#This Row],[Libellé produit]]","v":"CarottesLégumes soirs vendredi"}]
[null,null,null,null,null,null,"LSV05","Céleri","Légumes soirs vendredi",{"$f":"TabProduits[[#This Row],[Nom produit]]&TabProduits[[#This Row],[Libellé produit]]","v":"CéleriLégumes soirs vendredi"}]
[null,null,null,null,null,null,"LSV06","Champignons","Légumes soirs vendredi",{"$f":"TabProduits[[#This Row],[Nom produit]]&TabProduits[[#This Row],[Libellé produit]]","v":"ChampignonsLégumes soirs vendredi"}]
[null,null,null,null,null,null,"LSV07","Concombre","Légumes soirs vendredi",{"$f":"TabProduits[[#This Row],[Nom produit]]&TabProduits[[#This Row],[Libellé produit]]","v":"ConcombreLégumes soirs vendredi"}]
[null,null,null,null,null,null,"LSV08","Radis","Légumes soirs vendredi",{"$f":"TabProduits[[#This Row],[Nom produit]]&TabProduits[[#This Row],[Libellé produit]]","v":"RadisLégumes soirs vendredi"}]
[null,null,null,null,null,null,"LSV09","Salade","Légumes soirs vendredi",{"$f":"TabProduits[[#This Row],[Nom produit]]&TabProduits[[#This Row],[Libellé produit]]","v":"SaladeLégumes soirs vendredi"}]
[null,null,null,null,null,null,"LSV10","Salsifis","Légumes soirs vendredi",{"$f":"TabProduits[[#This Row],[Nom produit]]&TabProduits[[#This Row],[Libellé produit]]","v":"SalsifisLégumes soirs vendredi"}]
[null,null,null,null,null,null,"LSV11","Tomates","Légumes soirs vendredi",{"$f":"TabProduits[[#This Row],[Nom produit]]&TabProduits[[#This Row],[Libellé produit]]","v":"TomatesLégumes soirs vendredi"}]
[null,null,null,null,null,null,"LWS01","Pâtes à la sauce tomates","Légumes weekend samedi",{"$f":"TabProduits[[#This Row],[Nom produit]]&TabProduits[[#This Row],[Libellé produit]]","v":"Pâtes à la sauce tomatesLégumes weekend samedi"}]
[null,null,null,null,null,null,"LWS02","Pâtes au beurre","Légumes weekend samedi",{"$f":"TabProduits[[#This Row],[Nom produit]]&TabProduits[[#This Row],[Libellé produit]]","v":"Pâtes au beurreLégumes weekend samedi"}]
[null,null,null,null,null,null,"LWS03","Pâtes au fromage râpé","Légumes weekend samedi",{"$f":"TabProduits[[#This Row],[Nom produit]]&TabProduits[[#This Row],[Libellé produit]]","v":"Pâtes au fromage râpéLégumes weekend samedi"}]
[null,null,null,null,null,null,"LWD01","Asperges","Légumes weekend dimanche",{"$f":"TabProduits[[#This Row],[Nom produit]]&TabProduits[[#This Row],[Libellé produit]]","v":"AspergesLégumes weekend dimanche"}]
[null,null,null,null,null,null,"LWD02","Chips","Légumes weekend dimanche",{"$f":"TabProduits[[#This Row],[Nom produit]]&TabProduits[[#This Row],[Libellé produit]]","v":"ChipsLégumes weekend dimanche"}]
[null,null,null,null,null,null,"LWD03","Frites","Légumes weekend dimanche",{"$f":"TabProduits[[#This Row],[Nom produit]]&TabProduits[[#This Row],[Libellé produit]]","v":"FritesLégumes weekend dimanche"}]
[null,null,null,null,null,null,"LWD04","Haricots verts","Légumes weekend dimanche",{"$f":"TabProduits[[#This Row],[Nom produit]]&TabProduits[[#This Row],[Libellé produit]]","v":"Haricots vertsLégumes weekend dimanche"}]
[null,null,null,null,null,null,"VMR01","Rôti d'agneau","Viande menu midi retraite",{"$f":"TabProduits[[#This Row],[Nom produit]]&TabProduits[[#This Row],[Libellé produit]]","v":"Rôti d'agneauViande menu midi retraite"}]
[null,null,null,null,null,null,"VMR02","Rôti de bœuf","Viande menu midi retraite",{"$f":"TabProduits[[#This Row],[Nom produit]]&TabProduits[[#This Row],[Libellé produit]]","v":"Rôti de bœufViande menu midi retraite"}]
[null,null,null,null,null,null,"VMR03","Rôti de cheval","Viande menu midi retraite",{"$f":"TabProduits[[#This Row],[Nom produit]]&TabProduits[[#This Row],[Libellé produit]]","v":"Rôti de chevalViande menu midi retraite"}]
[null,null,null,null,null,null,"VMR04","Rôti de porc","Viande menu midi retraite",{"$f":"TabProduits[[#This Row],[Nom produit]]&TabProduits[[#This Row],[Libellé produit]]","v":"Rôti de porcViande menu midi retraite"}]
[null,null,null,null,null,null,"VMR05","Rôti de veau","Viande menu midi retraite",{"$f":"TabProduits[[#This Row],[Nom produit]]&TabProduits[[#This Row],[Libellé produit]]","v":"Rôti de veauViande menu midi retraite"}]
[null,null,null,null,null,null,"VMW01","Agneau","Viande menu midi weekend",{"$f":"TabProduits[[#This Row],[Nom produit]]&TabProduits[[#This Row],[Libellé produit]]","v":"AgneauViande menu midi weekend"}]
[null,null,null,null,null,null,"VMW02","Bœuf","Viande menu midi weekend",{"$f":"TabProduits[[#This Row],[Nom produit]]&TabProduits[[#This Row],[Libellé produit]]","v":"BœufViande menu midi weekend"}]
[null,null,null,null,null,null,"VMW03","Cheval","Viande menu midi weekend",{"$f":"TabProduits[[#This Row],[Nom produit]]&TabProduits[[#This Row],[Libellé produit]]","v":"ChevalViande menu midi weekend"}]
[null,null,null,null,null,null,"VMW04","Dinde","Viande menu midi weekend",{"$f":"TabProduits[[#This Row],[Nom produit]]&TabProduits[[#This Row],[Libellé produit]]","v":"DindeViande menu midi weekend"}]
[null,null,null,null,null,null,"VMW05","Poisson","Viande menu midi weekend",{"$f":"TabProduits[[#This Row],[Nom produit]]&TabProduits[[#This Row],[Libellé produit]]","v":"PoissonViande menu midi weekend"}]
[null,null,null,null,null,null,"VMW06","Porc","Viande menu midi weekend",{"$f":"TabProduits[[#This Row],[Nom produit]]&TabProduits[[#This Row],[Libellé produit]]","v":"PorcViande menu midi weekend"}]
[null,null,null,null,null,null,"VMW07","Veau","Viande menu midi weekend",{"$f":"TabProduits[[#This Row],[Nom produit]]&TabProduits[[#This Row],[Libellé produit]]","v":"VeauViande menu midi weekend"}]
[null,null,null,null,null,null,"VS01","Bifteck haché de bœuf","Viande menu soir",{"$f":"TabProduits[[#This Row],[Nom produit]]&TabProduits[[#This Row],[Libellé produit]]","v":"Bifteck haché de bœufViande menu soir"}]
[null,null,null,null,null,null,"VS02","Bifteck haché de cheval","Viande menu soir",{"$f":"TabProduits[[#This Row],[Nom produit]]&TabProduits[[#This Row],[Libellé produit]]","v":"Bifteck haché de chevalViande menu soir"}]
[null,null,null,null,null,null,"VS03","Bifteck haché de veau","Viande menu soir",{"$f":"TabProduits[[#This Row],[Nom produit]]&TabProduits[[#This Row],[Libellé produit]]","v":"Bifteck haché de veauViande menu soir"}]
[null,null,null,null,null,null,"VS04","Bouchée à la reine","Viande menu soir",{"$f":"TabProduits[[#This Row],[Nom produit]]&TabProduits[[#This Row],[Libellé produit]]","v":"Bouchée à la reineViande menu soir"}]
[null,null,null,null,null,null,"VS05","Boudin","Viande menu soir",{"$f":"TabProduits[[#This Row],[Nom produit]]&TabProduits[[#This Row],[Libellé produit]]","v":"BoudinViande menu soir"}]
[null,null,null,null,null,null,"VS06","Cervelas","Viande menu soir",{"$f":"TabProduits[[#This Row],[Nom produit]]&TabProduits[[#This Row],[Libellé produit]]","v":"CervelasViande menu soir"}]
[null,null,null,null,null,null,"VS07","Cœur","Viande menu soir",{"$f":"TabProduits[[#This Row],[Nom produit]]&TabProduits[[#This Row],[Libellé produit]]","v":"CœurViande menu soir"}]
[null,null,null,null,null,null,"VS08","Croque-monsieur","Viande menu soir",{"$f":"TabProduits[[#This Row],[Nom produit]]&TabProduits[[#This Row],[Libellé produit]]","v":"Croque-monsieurViande menu soir"}]
[null,null,null,null,null,null,"VS09","Foie","Viande menu soir",{"$f":"TabProduits[[#This Row],[Nom produit]]&TabProduits[[#This Row],[Libellé produit]]","v":"FoieViande menu soir"}]
[null,null,null,null,null,null,"VS10","Fromage de tête","Viande menu soir",{"$f":"TabProduits[[#This Row],[Nom produit]]&TabProduits[[#This Row],[Libellé produit]]","v":"Fromage de têteViande menu soir"}]
[null,null,null,null,null,null,"VS11","Jambon","Viande menu soir",{"$f":"TabProduits[[#This Row],[Nom produit]]&TabProduits[[#This Row],[Libellé produit]]","v":"JambonViande menu soir"}]
[null,null,null,null,null,null,"VS12","Jambonneau","Viande menu soir",{"$f":"TabProduits[[#This Row],[Nom produit]]&TabProduits[[#This Row],[Libellé produit]]","v":"JambonneauViande menu soir"}]
[null,null,null,null,null,null,"VS13","Mortadelle","Viande menu soir",{"$f":"TabProduits[[#This Row],[Nom produit]]&TabProduits[[#This Row],[Libellé produit]]","v":"MortadelleViande menu soir"}]
[null,null,null,null,null,null,"VS14","Œufs","Viande menu soir",{"$f":"TabProduits[[#This Row],[Nom produit]]&TabProduits[[#This Row],[Libellé produit]]","v":"ŒufsViande menu soir"}]
[null,null,null,null,null,null,"VS15","Pizza","Viande menu soir",{"$f":"TabProduits[[#This Row],[Nom produit]]&TabProduits[[#This Row],[Libellé produit]]","v":"PizzaViande menu soir"}]
[null,null,null,null,null,null,"VS16","Poisson","Viande menu soir",{"$f":"TabProduits[[#This Row],[Nom produit]]&TabProduits[[#This Row],[Libellé produit]]","v":"PoissonViande menu soir"}]
[null,null,null,null,null,null,"VS17","Quiche lorraine","Viande menu soir",{"$f":"TabProduits[[#This Row],[Nom produit]]&TabProduits[[#This Row],[Libellé produit]]","v":"Quiche lorraineViande menu soir"}]
[null,null,null,null,null,null,"VS18","Roulade à la pistache","Viande menu soir",{"$f":"TabProduits[[#This Row],[Nom produit]]&TabProduits[[#This Row],[Libellé produit]]","v":"Roulade à la pistacheViande menu soir"}]
[null,null,null,null,null,null,"VS19","Roulé au fromage","Viande menu soir",{"$f":"TabProduits[[#This Row],[Nom produit]]&TabProduits[[#This Row],[Libellé produit]]","v":"Roulé au fromageViande menu soir"}]
[null,null,null,null,null,null,"VS20","Salami","Viande menu soir",{"$f":"TabProduits[[#This Row],[Nom produit]]&TabProduits[[#This Row],[Libellé produit]]","v":"SalamiViande menu soir"}]
[null,null,null,null,null,null,"VS21","Saucisses","Viande menu soir",{"$f":"TabProduits[[#This Row],[Nom produit]]&TabProduits[[#This Row],[Libellé produit]]","v":"SaucissesViande menu soir"}]
[null,null,null,null,null,null,"VS22","Saucisson","Viande menu soir",{"$f":"TabProduits[[#This Row],[Nom produit]]&TabProduits[[#This Row],[Libellé produit]]","v":"SaucissonViande menu soir"}]
[null,null,null,null,null,null,"VS23","Tête persillée","Viande menu soir",{"$f":"TabProduits[[#This Row],[Nom produit]]&TabProduits[[#This Row],[Libellé produit]]","v":"Tête persilléeViande menu soir"}]
[null,null,null,null,null,null,"VS24","Tête roulée","Viande menu soir",{"$f":"TabProduits[[#This Row],[Nom produit]]&TabProduits[[#This Row],[Libellé produit]]","v":"Tête rouléeViande menu soir"}]
[null,null,null,null,null,null,"VS25","Thon","Viande menu soir",{"$f":"TabProduits[[#This Row],[Nom produit]]&TabProduits[[#This Row],[Libellé produit]]","v":"ThonViande menu soir"}]
[null,null,null,null,null,null,"VS26","Viande cassoulet","Viande menu soir",{"$f":"TabProduits[[#This Row],[Nom produit]]&TabProduits[[#This Row],[Libellé produit]]","v":"Viande cassouletViande menu soir"}]
[null,null,null,null,null,null,"VS27","Viande choucroute","Viande menu soir",{"$f":"TabProduits[[#This Row],[Nom produit]]&TabProduits[[#This Row],[Libellé produit]]","v":"Viande choucrouteViande menu soir"}]
[null,null,null,null,null,null,"VS28","Viande paella","Viande menu soir",{"$f":"TabProduits[[#This Row],[Nom produit]]&TabProduits[[#This Row],[Libellé produit]]","v":"Viande paellaViande menu soir"}]

{"sheet":"BD articles menus","index":2,"n_rows":123,"n_cols":13,"rows_kept":123,"cut":false,"hidden":false,"merged":[]}
["Nom nature création","Code nature création","Nom nature article menu","Code nature article menu","Nom article menu","Code article menu","Nom période article menu","Code période article menu","Nom conditionnement article menu","Code conditionnement article menu","Date création article menu","Numéro création article menu","clé article"]
["Création articles menus","CAM","Dessert midi retraite","DMR","Pomme","DMR01","Lundi à vendredi midis","PAM05","1 sachet de 2 kilogrammes. 1 pomme pour 1 repas","CAM17","samedi 21 janvier 2023","DMR-01",{"$f":"TabBDArticlesMenus[[#This Row],[Code nature article menu]]&TabBDArticlesMenus[[#This Row],[Nom article menu]]","v":"DMRPomme"}]
["Création articles menus","CAM","Dessert soir","DS","Pomme","DS01","Lundi à vendredi soirs","PAM06","1 sachet de 2 kilogrammes. 1 pomme pour 1 repas","CAM17","samedi 21 janvier 2023","DS-01",{"$f":"TabBDArticlesMenus[[#This Row],[Code nature article menu]]&TabBDArticlesMenus[[#This Row],[Nom article menu]]","v":"DSPomme"}]
["Création articles menus","CAM","Desserts weekend","DW","Ananas","DW01","Samedi et dimanche midis et soirs","PAM10","Unité : 1 pour 4 repas","CAM33","samedi 21 janvier 2023","DW-01",{"$f":"TabBDArticlesMenus[[#This Row],[Code nature article menu]]&TabBDArticlesMenus[[#This Row],[Nom article menu]]","v":"DWAnanas"}]
["Création articles menus","CAM","Desserts weekend","DW","Autres fruits","DW02","Samedi et dimanche midis et soirs","PAM10","Unité : 2 à 4 pour 1 repas","CAM35","samedi 21 janvier 2023","DW-02",{"$f":"TabBDArticlesMenus[[#This Row],[Code nature article menu]]&TabBDArticlesMenus[[#This Row],[Nom article menu]]","v":"DWAutres fruits"}]
["Création articles menus","CAM","Desserts weekend","DW","Avocats","DW03","Samedi et dimanche midis et soirs","PAM10","Unité : 1 pour 1 repas","CAM31","samedi 21 janvier 2023","DW-03",{"$f":"TabBDArticlesMenus[[#This Row],[Code nature article menu]]&TabBDArticlesMenus[[#This Row],[Nom article menu]]","v":"DWAvocats"}]
["Création articles menus","CAM","Desserts weekend","DW","Bananes","DW04","Samedi et dimanche midis et soirs","PAM10","Unité : 1 pour 1 repas","CAM31","samedi 21 janvier 2023","DW-04",{"$f":"TabBDArticlesMenus[[#This Row],[Code nature article menu]]&TabBDArticlesMenus[[#This Row],[Nom article menu]]","v":"DWBananes"}]
["Création articles menus","CAM","Desserts weekend","DW","Clémentines","DW05","Samedi et dimanche midis et soirs","PAM10","Unité : 2 à 4 pour 1 repas","CAM35","samedi 21 janvier 2023","DW-05",{"$f":"TabBDArticlesMenus[[#This Row],[Code nature article menu]]&TabBDArticlesMenus[[#This Row],[Nom article menu]]","v":"DWClémentines"}]
["Création articles menus","CAM","Desserts weekend","DW","Crème","DW06","Samedi et dimanche midis et soirs","PAM10","1 pack de 4 pots pour le weekend. 1 pot pour 1 repas","CAM10","samedi 21 janvier 2023","DW-06",{"$f":"TabBDArticlesMenus[[#This Row],[Code nature article menu]]&TabBDArticlesMenus[[#This Row],[Nom article menu]]","v":"DWCrème"}]
["Création articles menus","CAM","Desserts weekend","DW","Dattes","DW07","Samedi et dimanche midis et soirs","PAM10","1 paquet pour 4 repas","CAM15","samedi 21 janvier 2023","DW-07",{"$f":"TabBDArticlesMenus[[#This Row],[Code nature article menu]]&TabBDArticlesMenus[[#This Row],[Nom article menu]]","v":"DWDattes"}]
["Création articles menus","CAM","Desserts weekend","DW","Figues","DW08","Samedi et dimanche midis et soirs","PAM10","1 paquet pour 4 repas","CAM15","samedi 21 janvier 2023","DW-08",{"$f":"TabBDArticlesMenus[[#This Row],[Code nature article menu]]&TabBDArticlesMenus[[#This Row],[Nom article menu]]","v":"DWFigues"}]
["Création articles menus","CAM","Desserts weekend","DW","Fromage blanc","DW09","Samedi et dimanche midis et soirs","PAM10","1 pack de 4 pots pour le weekend. 1 pot pour 1 repas","CAM10","samedi 21 janvier 2023","DW-09",{"$f":"TabBDArticlesMenus[[#This Row],[Code nature article menu]]&TabBDArticlesMenus[[#This Row],[Nom article menu]]","v":"DWFromage blanc"}]
["Création articles menus","CAM","Desserts weekend","DW","Fruits au sirop","DW10","Samedi et dimanche midis et soirs","PAM10","1 boîte pour 2 repas","CAM05","samedi 21 janvier 2023","DW-10",{"$f":"TabBDArticlesMenus[[#This Row],[Code nature article menu]]&TabBDArticlesMenus[[#This Row],[Nom article menu]]","v":"DWFruits au sirop"}]
["Création articles menus","CAM","Desserts weekend","DW","Fruits de saison","DW11","Samedi et dimanche midis et soirs","PAM10","Unité : 2 à 4 pour 1 repas","CAM35","samedi 21 janvier 2023","DW-11",{"$f":"TabBDArticlesMenus[[#This Row],[Code nature article menu]]&TabBDArticlesMenus[[#This Row],[Nom article menu]]","v":"DWFruits de saison"}]
["Création articles menus","CAM","Desserts weekend","DW","Gâteau de riz","DW12","Samedi et dimanche midis et soirs","PAM10","1 pack de 4 pots pour le weekend. 1 pot pour 1 repas","CAM10","samedi 21 janvier 2023","DW-12",{"$f":"TabBDArticlesMenus[[#This Row],[Code nature article menu]]&TabBDArticlesMenus[[#This Row],[Nom article menu]]","v":"DWGâteau de riz"}]
["Création articles menus","CAM","Desserts weekend","DW","Gâteau de semoule","DW13","Samedi et dimanche midis et soirs","PAM10","1 pack de 4 pots pour le weekend. 1 pot pour 1 repas","CAM10","samedi 21 janvier 2023","DW-13",{"$f":"TabBDArticlesMenus[[#This Row],[Code nature article menu]]&TabBDArticlesMenus[[#This Row],[Nom article menu]]","v":"DWGâteau de semoule"}]
["Création articles menus","CAM","Desserts weekend","DW","Gâteaux samedi dimanche","DW14","Samedi et dimanche midis et soirs","PAM10","1 boîte pour 2 repas","CAM05","samedi 21 janvier 2023","DW-14",{"$f":"TabBDArticlesMenus[[#This Row],[Code nature article menu]]&TabBDArticlesMenus[[#This Row],[Nom article menu]]","v":"DWGâteaux samedi dimanche"}]
["Création articles menus","CAM","Desserts weekend","DW","Mousse au chocolat","DW15","Samedi et dimanche midis et soirs","PAM10","1 pack de 4 pots pour le weekend. 1 pot pour 1 repas","CAM10","samedi 21 janvier 2023","DW-15",{"$f":"TabBDArticlesMenus[[#This Row],[Code nature article menu]]&TabBDArticlesMenus[[#This Row],[Nom article menu]]","v":"DWMousse au chocolat"}]
["Création articles menus","CAM","Desserts weekend","DW","Oranges","DW16","Samedi et dimanche midis et soirs","PAM10","Unité : 1 pour 1 repas","CAM31","samedi 21 janvier 2023","DW-16",{"$f":"TabBDArticlesMenus[[#This Row],[Code nature article menu]]&TabBDArticlesMenus[[#This Row],[Nom article menu]]","v":"DWOranges"}]
["Création articles menus","CAM","Desserts weekend","DW","Petits suisses","DW17","Samedi et dimanche midis et soirs","PAM10","1 pack de 6 pots. 3 pots pour 1 repas","CAM11","samedi 21 janvier 2023","DW-17",{"$f":"TabBDArticlesMenus[[#This Row],[Code nature article menu]]&TabBDArticlesMenus[[#This Row],[Nom article menu]]","v":"DWPetits suisses"}]
["Création articles menus","CAM","Desserts weekend","DW","Pruneaux","DW18","Samedi et dimanche midis et soirs","PAM10","1 paquet pour 4 repas","CAM15","samedi 21 janvier 2023","DW-18",{"$f":"TabBDArticlesMenus[[#This Row],[Code nature article menu]]&TabBDArticlesMenus[[#This Row],[Nom article menu]]","v":"DWPruneaux"}]
["Création articles menus","CAM","Desserts weekend","DW","Riz au lait","DW19","Samedi et dimanche midis et soirs","PAM10","1 pack de 4 pots pour le weekend. 1 pot pour 1 repas","CAM10","samedi 21 janvier 2023","DW-19",{"$f":"TabBDArticlesMenus[[#This Row],[Code nature article menu]]&TabBDArticlesMenus[[#This Row],[Nom article menu]]","v":"DWRiz au lait"}]
["Création articles menus","CAM","Desserts weekend","DW","Tapioca","DW20","Samedi et dimanche midis et soirs","PAM10","25 grammes pour 1 repas","CAM25","samedi 21 janvier 2023","DW-20",{"$f":"TabBDArticlesMenus[[#This Row],[Code nature article menu]]&TabBDArticlesMenus[[#This Row],[Nom article menu]]","v":"DWTapioca"}]
["Création articles menus","CAM","Desserts weekend","DW","Yaourts","DW21","Samedi et dimanche midis et soirs","PAM10","1 pack de 4 pots pour le weekend. 1 pot pour 1 repas","CAM10","samedi 21 janvier 2023","DW-21",{"$f":"TabBDArticlesMenus[[#This Row],[Code nature article menu]]&TabBDArticlesMenus[[#This Row],[Nom article menu]]","v":"DWYaourts"}]
["Création articles menus","CAM","Légumes midi retraite","LMR","Asperges","LMR01","Lundi à vendredi midis","PAM05","1 boîte pour 1 repas","CAM04","samedi 21 janvier 2023","LMR-01",{"$f":"TabBDArticlesMenus[[#This Row],[Code nature article menu]]&TabBDArticlesMenus[[#This Row],[Nom article menu]]","v":"LMRAsperges"}]
["Création articles menus","CAM","Légumes midi retraite","LMR","Avocat","LMR02","Lundi à vendredi midis","PAM05","Unité : 1 pour 1 repas","CAM31","samedi 21 janvier 2023","LMR-02",{"$f":"TabBDArticlesMenus[[#This Row],[Code nature article menu]]&TabBDArticlesMenus[[#This Row],[Nom article menu]]","v":"LMRAvocat"}]
["Création articles menus","CAM","Légumes midi retraite","LMR","Carottes","LMR03","Lundi à vendredi midis","PAM05","Unité : 2 pour 1 repas","CAM36","samedi 21 janvier 2023","LMR-03",{"$f":"TabBDArticlesMenus[[#This Row],[Code nature article menu]]&TabBDArticlesMenus[[#This Row],[Nom article menu]]","v":"LMRCarottes"}]
["Création articles menus","CAM","Légumes midi retraite","LMR","Céleri","LMR04","Lundi à vendredi midis","PAM05","Unité : 1 branche pour 1 repas","CAM29","samedi 21 janvier 2023","LMR-04",{"$f":"TabBDArticlesMenus[[#This Row],[Code nature article menu]]&TabBDArticlesMenus[[#This Row],[Nom article menu]]","v":"LMRCéleri"}]
["Création articles menus","CAM","Légumes midi retraite","LMR","Champignons","LMR05","Lundi à vendredi midis","PAM05","1 boîte pour 1 repas","CAM04","samedi 21 janvier 2023","LMR-05",{"$f":"TabBDArticlesMenus[[#This Row],[Code nature article menu]]&TabBDArticlesMenus[[#This Row],[Nom article menu]]","v":"LMRChampignons"}]
["Création articles menus","CAM","Légumes midi retraite","LMR","Concombre","LMR06","Lundi à vendredi midis","PAM05","Unité : 1 pour 1 repas","CAM31","samedi 21 janvier 2023","LMR-06",{"$f":"TabBDArticlesMenus[[#This Row],[Code nature article menu]]&TabBDArticlesMenus[[#This Row],[Nom article menu]]","v":"LMRConcombre"}]
["Création articles menus","CAM","Légumes midi retraite","LMR","Couscous","LMR07","Lundi à vendredi midis","PAM05","25 grammes pour 1 repas","CAM25","samedi 21 janvier 2023","LMR-07",{"$f":"TabBDArticlesMenus[[#This Row],[Code nature article menu]]&TabBDArticlesMenus[[#This Row],[Nom article menu]]","v":"LMRCouscous"}]
["Création articles menus","CAM","Légumes midi retraite","LMR","Maïs","LMR08","Lundi à vendredi midis","PAM05","1 boîte pour 2 repas","CAM05","samedi 21 janvier 2023","LMR-08",{"$f":"TabBDArticlesMenus[[#This Row],[Code nature article menu]]&TabBDArticlesMenus[[#This Row],[Nom article menu]]","v":"LMRMaïs"}]
["Création articles menus","CAM","Légumes midi retraite","LMR","Pâtes à la sauce tomates","LMR09","Lundi à vendredi midis","PAM05","5 cuillères pour 1 repas","CAM27","samedi 21 janvier 2023","LMR-09",{"$f":"TabBDArticlesMenus[[#This Row],[Code nature article menu]]&TabBDArticlesMenus[[#This Row],[Nom article menu]]","v":"LMRPâtes à la sauce tomates"}]
["Création articles menus","CAM","Légumes midi retraite","LMR","Pâtes au beurre","LMR10","Lundi à vendredi midis","PAM05","5 cuillères pour 1 repas","CAM27","samedi 21 janvier 2023","LMR-10",{"$f":"TabBDArticlesMenus[[#This Row],[Code nature article menu]]&TabBDArticlesMenus[[#This Row],[Nom article menu]]","v":"LMRPâtes au beurre"}]
["Création articles menus","CAM","Légumes midi retraite","LMR","Poireau","LMR11","Lundi à vendredi midis","PAM05","Unité : 1 pour 1 repas","CAM31","samedi 21 janvier 2023","LMR-11",{"$f":"TabBDArticlesMenus[[#This Row],[Code nature article menu]]&TabBDArticlesMenus[[#This Row],[Nom article menu]]","v":"LMRPoireau"}]
["Création articles menus","CAM","Légumes midi retraite","LMR","Pomme de terre","LMR12","Lundi à vendredi midis","PAM05","Unité : 1 pour 1 repas","CAM31","samedi 21 janvier 2023","LMR-12",{"$f":"TabBDArticlesMenus[[#This Row],[Code nature article menu]]&TabBDArticlesMenus[[#This Row],[Nom article menu]]","v":"LMRPomme de terre"}]
["Création articles menus","CAM","Légumes midi retraite","LMR","Purée","LMR13","Lundi à vendredi midis","PAM05","25 grammes pour 1 repas","CAM25","samedi 21 janvier 2023","LMR-13",{"$f":"TabBDArticlesMenus[[#This Row],[Code nature article menu]]&TabBDArticlesMenus[[#This Row],[Nom article menu]]","v":"LMRPurée"}]
["Création articles menus","CAM","Légumes midi retraite","LMR","Radis","LMR14","Lundi à vendredi midis","PAM05","1 botte ou 1 sachet pour 2 repas","CAM07","samedi 21 janvier 2023","LMR-14",{"$f":"TabBDArticlesMenus[[#This Row],[Code nature article menu]]&TabBDArticlesMenus[[#This Row],[Nom article menu]]","v":"LMRRadis"}]
["Création articles menus","CAM","Légumes midi retraite","LMR","Riz","LMR15","Lundi à vendredi midis","PAM05","25 grammes pour 1 repas","CAM25","samedi 21 janvier 2023","LMR-15",{"$f":"TabBDArticlesMenus[[#This Row],[Code nature article menu]]&TabBDArticlesMenus[[#This Row],[Nom article menu]]","v":"LMRRiz"}]
["Création articles menus","CAM","Légumes midi retraite","LMR","Salade","LMR16","Lundi à vendredi midis","PAM05","Unité : 1 tête pour 1 repas","CAM34","samedi 21 janvier 2023","LMR-16",{"$f":"TabBDArticlesMenus[[#This Row],[Code nature article menu]]&TabBDArticlesMenus[[#This Row],[Nom article menu]]","v":"LMRSalade"}]
["Création articles menus","CAM","Légumes midi retraite","LMR","Tomates","LMR17","Lundi à vendredi midis","PAM05","Unité : 2 pour 1 repas","CAM36","samedi 21 janvier 2023","LMR-17",{"$f":"TabBDArticlesMenus[[#This Row],[Code nature article menu]]&TabBDArticlesMenus[[#This Row],[Nom article menu]]","v":"LMRTomates"}]
["Création articles menus","CAM","Légumes soirs lundi mardi","LSLM","Cassoulet","LSLM01","Lundi et mardi soirs","PAM07","1 boîte pour 2 repas","CAM05","samedi 21 janvier 2023","LSLM-01",{"$f":"TabBDArticlesMenus[[#This Row],[Code nature article menu]]&TabBDArticlesMenus[[#This Row],[Nom article menu]]","v":"LSLMCassoulet"}]
["Création articles menus","CAM","Légumes soirs lundi mardi","LSLM","Choucroute","LSLM02","Lundi et mardi soirs","PAM07","1 boîte pour 2 repas","CAM05","samedi 21 janvier 2023","LSLM-02",{"$f":"TabBDArticlesMenus[[#This Row],[Code nature article menu]]&TabBDArticlesMenus[[#This Row],[Nom article menu]]","v":"LSLMChoucroute"}]
["Création articles menus","CAM","Légumes soirs lundi mardi","LSLM","Chou-fleur","LSLM03","Lundi et mardi soirs","PAM07","Unité : 1 pour 2 repas","CAM32","dimanche 22 janvier 2023","LSLM-03",{"$f":"TabBDArticlesMenus[[#This Row],[Code nature article menu]]&TabBDArticlesMenus[[#This Row],[Nom article menu]]","v":"LSLMChou-fleur"}]
["Création articles menus","CAM","Légumes soirs lundi mardi","LSLM","Choux de Bruxelles","LSLM04","Lundi et mardi soirs","PAM07","1 boîte pour 2 repas","CAM05","dimanche 22 janvier 2023","LSLM-04",{"$f":"TabBDArticlesMenus[[#This Row],[Code nature article menu]]&TabBDArticlesMenus[[#This Row],[Nom article menu]]","v":"LSLMChoux de Bruxelles"}]
["Création articles menus","CAM","Légumes soirs lundi mardi","LSLM","Couscous","LSLM05","Lundi et mardi soirs","PAM07","25 grammes pour 1 repas","CAM25","dimanche 22 janvier 2023","LSLM-05",{"$f":"TabBDArticlesMenus[[#This Row],[Code nature article menu]]&TabBDArticlesMenus[[#This Row],[Nom article menu]]","v":"LSLMCouscous"}]
["Création articles menus","CAM","Légumes soirs lundi mardi","LSLM","Endives","LSLM06","Lundi et mardi soirs","PAM07","1 boîte pour 2 repas","CAM05","dimanche 22 janvier 2023","LSLM-06",{"$f":"TabBDArticlesMenus[[#This Row],[Code nature article menu]]&TabBDArticlesMenus[[#This Row],[Nom article menu]]","v":"LSLMEndives"}]
["Création articles menus","CAM","Légumes soirs lundi mardi","LSLM","Haricots verts","LSLM07","Lundi et mardi soirs","PAM07","1 boîte pour 2 repas","CAM05","dimanche 22 janvier 2023","LSLM-07",{"$f":"TabBDArticlesMenus[[#This Row],[Code nature article menu]]&TabBDArticlesMenus[[#This Row],[Nom article menu]]","v":"LSLMHaricots verts"}]
["Création articles menus","CAM","Légumes soirs lundi mardi","LSLM","Maïs","LSLM08","Lundi et mardi soirs","PAM07","1 boîte pour 2 repas","CAM05","dimanche 22 janvier 2023","LSLM-08",{"$f":"TabBDArticlesMenus[[#This Row],[Code nature article menu]]&TabBDArticlesMenus[[#This Row],[Nom article menu]]","v":"LSLMMaïs"}]
["Création articles menus","CAM","Légumes soirs lundi mardi","LSLM","Paella","LSLM09","Lundi et mardi soirs","PAM07","1 boîte pour 2 repas","CAM05","dimanche 22 janvier 2023","LSLM-09",{"$f":"TabBDArticlesMenus[[#This Row],[Code nature article menu]]&TabBDArticlesMenus[[#This Row],[Nom article menu]]","v":"LSLMPaella"}]
["Création articles menus","CAM","Légumes soirs lundi mardi","LSLM","Poireau","LSLM10","Lundi et mardi soirs","PAM07","Unité : 1 pour 1 repas","CAM31","dimanche 22 janvier 2023","LSLM-10",{"$f":"TabBDArticlesMenus[[#This Row],[Code nature article menu]]&TabBDArticlesMenus[[#This Row],[Nom article menu]]","v":"LSLMPoireau"}]
["Création articles menus","CAM","Légumes soirs lundi mardi","LSLM","Pomme de terre","LSLM11","Lundi et mardi soirs","PAM07","Unité : 1 pour 1 repas","CAM31","dimanche 22 janvier 2023","LSLM-11",{"$f":"TabBDArticlesMenus[[#This Row],[Code nature article menu]]&TabBDArticlesMenus[[#This Row],[Nom article menu]]","v":"LSLMPomme de terre"}]
["Création articles menus","CAM","Légumes soirs lundi mardi","LSLM","Purée","LSLM12","Lundi et mardi soirs","PAM07","25 grammes pour 1 repas","CAM25","dimanche 22 janvier 2023","LSLM-12",{"$f":"TabBDArticlesMenus[[#This Row],[Code nature article menu]]&TabBDArticlesMenus[[#This Row],[Nom article menu]]","v":"LSLMPurée"}]
["Création articles menus","CAM","Légumes soirs lundi mardi","LSLM","Quenelles","LSLM13","Lundi et mardi soirs","PAM07","1 boîte pour 2 repas","CAM05","dimanche 22 janvier 2023","LSLM-13",{"$f":"TabBDArticlesMenus[[#This Row],[Code nature article menu]]&TabBDArticlesMenus[[#This Row],[Nom article menu]]","v":"LSLMQuenelles"}]
["Création articles menus","CAM","Légumes soirs lundi mardi","LSLM","Riz","LSLM14","Lundi et mardi soirs","PAM07","25 grammes pour 1 repas","CAM25","dimanche 22 janvier 2023","LSLM-14",{"$f":"TabBDArticlesMenus[[#This Row],[Code nature article menu]]&TabBDArticlesMenus[[#This Row],[Nom article menu]]","v":"LSLMRiz"}]
["Création articles menus","CAM","Légumes soirs mercredi jeudi","LSMJ","Macédoine de légumes","LSMJ01","Mercredi et jeudi soirs","PAM08","1 boîte pour 2 repas","CAM05","dimanche 22 janvier 2023","LSMJ-01",{"$f":"TabBDArticlesMenus[[#This Row],[Code nature article menu]]&TabBDArticlesMenus[[#This Row],[Nom article menu]]","v":"LSMJMacédoine de légumes"}]
["Création articles menus","CAM","Légumes soirs mercredi jeudi","LSMJ","Petits pois","LSMJ02","Mercredi et jeudi soirs","PAM08","1 boîte pour 2 repas","CAM05","dimanche 22 janvier 2023","LSMJ-02",{"$f":"TabBDArticlesMenus[[#This Row],[Code nature article menu]]&TabBDArticlesMenus[[#This Row],[Nom article menu]]","v":"LSMJPetits pois"}]
["Création articles menus","CAM","Légumes soirs mercredi jeudi","LSMJ","Petits pois et jeunes carottes","LSMJ03","Mercredi et jeudi soirs","PAM08","1 boîte pour 2 repas","CAM05","dimanche 22 janvier 2023","LSMJ-03",{"$f":"TabBDArticlesMenus[[#This Row],[Code nature article menu]]&TabBDArticlesMenus[[#This Row],[Nom article menu]]","v":"LSMJPetits pois et jeunes carottes"}]
["Création articles menus","CAM","Légumes soirs mercredi jeudi","LSMJ","Ratatouille","LSMJ04","Mercredi et jeudi soirs","PAM08","1 boîte pour 2 repas","CAM05","dimanche 22 janvier 2023","LSMJ-04",{"$f":"TabBDArticlesMenus[[#This Row],[Code nature article menu]]&TabBDArticlesMenus[[#This Row],[Nom article menu]]","v":"LSMJRatatouille"}]
["Création articles menus","CAM","Légumes soirs mercredi jeudi","LSMJ","Raviolis","LSMJ05","Mercredi et jeudi soirs","PAM08","1 boîte pour 2 repas","CAM05","dimanche 22 janvier 2023","LSMJ-05",{"$f":"TabBDArticlesMenus[[#This Row],[Code nature article menu]]&TabBDArticlesMenus[[#This Row],[Nom article menu]]","v":"LSMJRaviolis"}]
["Création articles menus","CAM","Légumes soirs mercredi jeudi","LSMJ","Tomates pelées","LSMJ06","Mercredi et jeudi soirs","PAM08","1 boîte pour 2 repas","CAM05","dimanche 22 janvier 2023","LSMJ-06",{"$f":"TabBDArticlesMenus[[#This Row],[Code nature article menu]]&TabBDArticlesMenus[[#This Row],[Nom article menu]]","v":"LSMJTomates pelées"}]
["Création articles menus","CAM","Légumes soirs vendredi","LSV","Asperges","LSV01","Vendredi soir","PAM12","1 boîte pour 1 repas","CAM04","dimanche 22 janvier 2023","LSV-01",{"$f":"TabBDArticlesMenus[[#This Row],[Code nature article menu]]&TabBDArticlesMenus[[#This Row],[Nom article menu]]","v":"LSVAsperges"}]
["Création articles menus","CAM","Légumes soirs vendredi","LSV","Avocat","LSV02","Vendredi soir","PAM12","Unité : 1 pour 1 repas","CAM31","dimanche 22 janvier 2023","LSV-02",{"$f":"TabBDArticlesMenus[[#This Row],[Code nature article menu]]&TabBDArticlesMenus[[#This Row],[Nom article menu]]","v":"LSVAvocat"}]
["Création articles menus","CAM","Légumes soirs vendredi","LSV","Betterave rouge","LSV03","Vendredi soir","PAM12","1 paquet pour 5 repas (Betteraves rouges)","CAM16","dimanche 22 janvier 2023","LSV-03",{"$f":"TabBDArticlesMenus[[#This Row],[Code nature article menu]]&TabBDArticlesMenus[[#This Row],[Nom article menu]]","v":"LSVBetterave rouge"}]
["Création articles menus","CAM","Légumes soirs vendredi","LSV","Carottes","LSV04","Vendredi soir","PAM12","Unité : 2 pour 1 repas","CAM36","dimanche 22 janvier 2023","LSV-04",{"$f":"TabBDArticlesMenus[[#This Row],[Code nature article menu]]&TabBDArticlesMenus[[#This Row],[Nom article menu]]","v":"LSVCarottes"}]
["Création articles menus","CAM","Légumes soirs vendredi","LSV","Céleri","LSV05","Vendredi soir","PAM12","Unité : 1 branche pour 1 repas","CAM29","dimanche 22 janvier 2023","LSV-05",{"$f":"TabBDArticlesMenus[[#This Row],[Code nature article menu]]&TabBDArticlesMenus[[#This Row],[Nom article menu]]","v":"LSVCéleri"}]
["Création articles menus","CAM","Légumes soirs vendredi","LSV","Champignons","LSV06","Vendredi soir","PAM12","1 boîte pour 1 repas","CAM04","dimanche 22 janvier 2023","LSV-06",{"$f":"TabBDArticlesMenus[[#This Row],[Code nature article menu]]&TabBDArticlesMenus[[#This Row],[Nom article menu]]","v":"LSVChampignons"}]
["Création articles menus","CAM","Légumes soirs vendredi","LSV","Concombre","LSV07","Vendredi soir","PAM12","Unité : 1 pour 1 repas","CAM31","dimanche 22 janvier 2023","LSV-07",{"$f":"TabBDArticlesMenus[[#This Row],[Code nature article menu]]&TabBDArticlesMenus[[#This Row],[Nom article menu]]","v":"LSVConcombre"}]
["Création articles menus","CAM","Légumes soirs vendredi","LSV","Radis","LSV08","Vendredi soir","PAM12","1 botte ou 1 sachet pour 1 repas","CAM06","dimanche 22 janvier 2023","LSV-08",{"$f":"TabBDArticlesMenus[[#This Row],[Code nature article menu]]&TabBDArticlesMenus[[#This Row],[Nom article menu]]","v":"LSVRadis"}]
["Création articles menus","CAM","Légumes soirs vendredi","LSV","Salade","LSV09","Vendredi soir","PAM12","Unité : 1 tête pour 1 repas","CAM34","dimanche 22 janvier 2023","LSV-09",{"$f":"TabBDArticlesMenus[[#This Row],[Code nature article menu]]&TabBDArticlesMenus[[#This Row],[Nom article menu]]","v":"LSVSalade"}]
["Création articles menus","CAM","Légumes soirs vendredi","LSV","Salsifis","LSV10","Vendredi soir","PAM12","1 boîte pour 1 repas","CAM04","dimanche 22 janvier 2023","LSV-10",{"$f":"TabBDArticlesMenus[[#This Row],[Code nature article menu]]&TabBDArticlesMenus[[#This Row],[Nom article menu]]","v":"LSVSalsifis"}]
["Création articles menus","CAM","Légumes soirs vendredi","LSV","Tomates","LSV11","Vendredi soir","PAM12","Unité : 2 pour 1 repas","CAM36","dimanche 22 janvier 2023","LSV-11",{"$f":"TabBDArticlesMenus[[#This Row],[Code nature article menu]]&TabBDArticlesMenus[[#This Row],[Nom article menu]]","v":"LSVTomates"}]
["Création articles menus","CAM","Légumes weekend dimanche","LWD","Asperges","LWD01","Dimanche soir","PAM03","1 boîte pour 1 repas","CAM04","dimanche 22 janvier 2023","LWD-01",{"$f":"TabBDArticlesMenus[[#This Row],[Code nature article menu]]&TabBDArticlesMenus[[#This Row],[Nom article menu]]","v":"LWDAsperges"}]
["Création articles menus","CAM","Légumes weekend dimanche","LWD","Chips","LWD02","Dimanche midi et soir","PAM02","1 sachet pour 2 repas (Chips)","CAM18","dimanche 22 janvier 2023","LWD-02",{"$f":"TabBDArticlesMenus[[#This Row],[Code nature article menu]]&TabBDArticlesMenus[[#This Row],[Nom article menu]]","v":"LWDChips"}]
["Création articles menus","CAM","Légumes weekend dimanche","LWD","Frites","LWD03","Dimanche midi","PAM01","20 frites pour 1 repas","CAM24","dimanche 22 janvier 2023","LWD-03",{"$f":"TabBDArticlesMenus[[#This Row],[Code nature article menu]]&TabBDArticlesMenus[[#This Row],[Nom article menu]]","v":"LWDFrites"}]
["Création articles menus","CAM","Légumes weekend dimanche","LWD","Haricots verts","LWD04","Dimanche midi et soir","PAM02","1 boîte pour 2 repas","CAM05","dimanche 22 janvier 2023","LWD-04",{"$f":"TabBDArticlesMenus[[#This Row],[Code nature article menu]]&TabBDArticlesMenus[[#This Row],[Nom article menu]]","v":"LWDHaricots verts"}]
["Création articles menus","CAM","Légumes weekend samedi","LWS","Pâtes à la sauce tomates","LWS01","Samedi midi et soir","PAM11","5 cuillères pour 1 repas","CAM27","dimanche 22 janvier 2023","LWS-01",{"$f":"TabBDArticlesMenus[[#This Row],[Code nature article menu]]&TabBDArticlesMenus[[#This Row],[Nom article menu]]","v":"LWSPâtes à la sauce tomates"}]
["Création articles menus","CAM","Légumes weekend samedi","LWS","Pâtes au beurre","LWS02","Samedi midi et soir","PAM11","5 cuillères pour 1 repas","CAM27","dimanche 22 janvier 2023","LWS-02",{"$f":"TabBDArticlesMenus[[#This Row],[Code nature article menu]]&TabBDArticlesMenus[[#This Row],[Nom article menu]]","v":"LWSPâtes au beurre"}]
["Création articles menus","CAM","Légumes weekend samedi","LWS","Pâtes au fromage râpé","LWS03","Samedi midi et soir","PAM11","5 cuillères pour 1 repas","CAM27","dimanche 22 janvier 2023","LWS-03",{"$f":"TabBDArticlesMenus[[#This Row],[Code nature article menu]]&TabBDArticlesMenus[[#This Row],[Nom article menu]]","v":"LWSPâtes au fromage râpé"}]
["Création articles menus","CAM","Viande menu midi retraite","VMR","Rôti d'agneau","VMR01","Lundi à vendredi midis","PAM05","1 morceau de 500 grammes pour 5 repas","CAM09","dimanche 22 janvier 2023","VMR-01",{"$f":"TabBDArticlesMenus[[#This Row],[Code nature article menu]]&TabBDArticlesMenus[[#This Row],[Nom article menu]]","v":"VMRRôti d'agneau"}]
["Création articles menus","CAM","Viande menu midi retraite","VMR","Rôti de bœuf","VMR02","Lundi à vendredi midis","PAM05","1 morceau de 500 grammes pour 5 repas","CAM09","dimanche 22 janvier 2023","VMR-02",{"$f":"TabBDArticlesMenus[[#This Row],[Code nature article menu]]&TabBDArticlesMenus[[#This Row],[Nom article menu]]","v":"VMRRôti de bœuf"}]
["Création articles menus","CAM","Viande menu midi retraite","VMR","Rôti de cheval","VMR03","Lundi à vendredi midis","PAM05","1 morceau de 500 grammes pour 5 repas","CAM09","dimanche 22 janvier 2023","VMR-03",{"$f":"TabBDArticlesMenus[[#This Row],[Code nature article menu]]&TabBDArticlesMenus[[#This Row],[Nom article menu]]","v":"VMRRôti de cheval"}]
["Création articles menus","CAM","Viande menu midi retraite","VMR","Rôti de porc","VMR04","Lundi à vendredi midis","PAM05","1 morceau de 500 grammes pour 5 repas","CAM09","dimanche 22 janvier 2023","VMR-04",{"$f":"TabBDArticlesMenus[[#This Row],[Code nature article menu]]&TabBDArticlesMenus[[#This Row],[Nom article menu]]","v":"VMRRôti de porc"}]
["Création articles menus","CAM","Viande menu midi retraite","VMR","Rôti de veau","VMR05","Lundi à vendredi midis","PAM05","1 morceau de 500 grammes pour 5 repas","CAM09","dimanche 22 janvier 2023","VMR-05",{"$f":"TabBDArticlesMenus[[#This Row],[Code nature article menu]]&TabBDArticlesMenus[[#This Row],[Nom article menu]]","v":"VMRRôti de veau"}]
["Création articles menus","CAM","Viande menu midi weekend","VMW","Agneau","VMW01","Samedi et dimanche midis","PAM09","1 tranche pour 1 repas","CAM21","dimanche 22 janvier 2023","VMW-01",{"$f":"TabBDArticlesMenus[[#This Row],[Code nature article menu]]&TabBDArticlesMenus[[#This Row],[Nom article menu]]","v":"VMWAgneau"}]
["Création articles menus","CAM","Viande menu midi weekend","VMW","Bœuf","VMW02","Samedi et dimanche midis","PAM09","1 tranche pour 1 repas","CAM21","dimanche 22 janvier 2023","VMW-02",{"$f":"TabBDArticlesMenus[[#This Row],[Code nature article menu]]&TabBDArticlesMenus[[#This Row],[Nom article menu]]","v":"VMWBœuf"}]
["Création articles menus","CAM","Viande menu midi weekend","VMW","Cheval","VMW03","Samedi et dimanche midis","PAM09","1 tranche pour 1 repas","CAM21","dimanche 22 janvier 2023","VMW-03",{"$f":"TabBDArticlesMenus[[#This Row],[Code nature article menu]]&TabBDArticlesMenus[[#This Row],[Nom article menu]]","v":"VMWCheval"}]
["Création articles menus","CAM","Viande menu midi weekend","VMW","Dinde","VMW04","Samedi et dimanche midis","PAM09","1 tranche pour 1 repas","CAM21","dimanche 22 janvier 2023","VMW-04",{"$f":"TabBDArticlesMenus[[#This Row],[Code nature article menu]]&TabBDArticlesMenus[[#This Row],[Nom article menu]]","v":"VMWDinde"}]
["Création articles menus","CAM","Viande menu midi weekend","VMW","Poisson","VMW05","Samedi et dimanche midis","PAM09","Unité : 1 pour 1 repas","CAM31","dimanche 22 janvier 2023","VMW-05",{"$f":"TabBDArticlesMenus[[#This Row],[Code nature article menu]]&TabBDArticlesMenus[[#This Row],[Nom article menu]]","v":"VMWPoisson"}]
["Création articles menus","CAM","Viande menu midi weekend","VMW","Porc","VMW06","Samedi et dimanche midis","PAM09","1 tranche pour 1 repas","CAM21","dimanche 22 janvier 2023","VMW-06",{"$f":"TabBDArticlesMenus[[#This Row],[Code nature article menu]]&TabBDArticlesMenus[[#This Row],[Nom article menu]]","v":"VMWPorc"}]
["Création articles menus","CAM","Viande menu midi weekend","VMW","Veau","VMW07","Samedi et dimanche midis","PAM09","1 tranche pour 1 repas","CAM21","dimanche 22 janvier 2023","VMW-07",{"$f":"TabBDArticlesMenus[[#This Row],[Code nature article menu]]&TabBDArticlesMenus[[#This Row],[Nom article menu]]","v":"VMWVeau"}]
["Création articles menus","CAM","Viande menu soir","VS","Bifteck haché de bœuf","VS01","Lundi à dimanche soirs","PAM04","1 paquet pour 2 repas","CAM13","dimanche 22 janvier 2023","VS-01",{"$f":"TabBDArticlesMenus[[#This Row],[Code nature article menu]]&TabBDArticlesMenus[[#This Row],[Nom article menu]]","v":"VSBifteck haché de bœuf"}]
["Création articles menus","CAM","Viande menu soir","VS","Bifteck haché de cheval","VS02","Lundi à dimanche soirs","PAM04","125 grammes pour 1 repas (Bifteck haché de cheval)","CAM23","dimanche 22 janvier 2023","VS-02",{"$f":"TabBDArticlesMenus[[#This Row],[Code nature article menu]]&TabBDArticlesMenus[[#This Row],[Nom article menu]]","v":"VSBifteck haché de cheval"}]
["Création articles menus","CAM","Viande menu soir","VS","Bifteck haché de veau","VS03","Lundi à dimanche soirs","PAM04","1 paquet pour 2 repas","CAM13","dimanche 22 janvier 2023","VS-03",{"$f":"TabBDArticlesMenus[[#This Row],[Code nature article menu]]&TabBDArticlesMenus[[#This Row],[Nom article menu]]","v":"VSBifteck haché de veau"}]
["Création articles menus","CAM","Viande menu soir","VS","Bouchée à la reine","VS04","Lundi à dimanche soirs","PAM04","1 boîte pour 2 repas","CAM05","dimanche 22 janvier 2023","VS-04",{"$f":"TabBDArticlesMenus[[#This Row],[Code nature article menu]]&TabBDArticlesMenus[[#This Row],[Nom article menu]]","v":"VSBouchée à la reine"}]
["Création articles menus","CAM","Viande menu soir","VS","Boudin","VS05","Lundi à dimanche soirs","PAM04","1 paquet pour 2 repas","CAM13","dimanche 22 janvier 2023","VS-05",{"$f":"TabBDArticlesMenus[[#This Row],[Code nature article menu]]&TabBDArticlesMenus[[#This Row],[Nom article menu]]","v":"VSBoudin"}]
["Création articles menus","CAM","Viande menu soir","VS","Cervelas","VS06","Lundi à dimanche soirs","PAM04","1 paquet pour 2 repas","CAM13","dimanche 22 janvier 2023","VS-06",{"$f":"TabBDArticlesMenus[[#This Row],[Code nature article menu]]&TabBDArticlesMenus[[#This Row],[Nom article menu]]","v":"VSCervelas"}]
["Création articles menus","CAM","Viande menu soir","VS","Cœur","VS07","Lundi à dimanche soirs","PAM04","1 paquet pour 2 repas","CAM13","dimanche 22 janvier 2023","VS-07",{"$f":"TabBDArticlesMenus[[#This Row],[Code nature article menu]]&TabBDArticlesMenus[[#This Row],[Nom article menu]]","v":"VSCœur"}]
["Création articles menus","CAM","Viande menu soir","VS","Croque-monsieur","VS08","Lundi à dimanche soirs","PAM04","1 boîte pour 2 repas","CAM05","dimanche 22 janvier 2023","VS-08",{"$f":"TabBDArticlesMenus[[#This Row],[Code nature article menu]]&TabBDArticlesMenus[[#This Row],[Nom article menu]]","v":"VSCroque-monsieur"}]
["Création articles menus","CAM","Viande menu soir","VS","Foie","VS09","Lundi à dimanche soirs","PAM04","1 paquet pour 2 repas","CAM13","dimanche 22 janvier 2023","VS-09",{"$f":"TabBDArticlesMenus[[#This Row],[Code nature article menu]]&TabBDArticlesMenus[[#This Row],[Nom article menu]]","v":"VSFoie"}]
["Création articles menus","CAM","Viande menu soir","VS","Fromage de tête","VS10","Lundi à dimanche soirs","PAM04","1 tranche pour 2 repas","CAM22","dimanche 22 janvier 2023","VS-10",{"$f":"TabBDArticlesMenus[[#This Row],[Code nature article menu]]&TabBDArticlesMenus[[#This Row],[Nom article menu]]","v":"VSFromage de tête"}]
["Création articles menus","CAM","Viande menu soir","VS","Jambon","VS11","Lundi à dimanche soirs","PAM04","1 paquet pour 2 repas","CAM13","dimanche 22 janvier 2023","VS-11",{"$f":"TabBDArticlesMenus[[#This Row],[Code nature article menu]]&TabBDArticlesMenus[[#This Row],[Nom article menu]]","v":"VSJambon"}]
["Création articles menus","CAM","Viande menu soir","VS","Jambonneau","VS12","Lundi à dimanche soirs","PAM04","1 paquet pour 2 repas","CAM13","dimanche 22 janvier 2023","VS-12",{"$f":"TabBDArticlesMenus[[#This Row],[Code nature article menu]]&TabBDArticlesMenus[[#This Row],[Nom article menu]]","v":"VSJambonneau"}]
["Création articles menus","CAM","Viande menu soir","VS","Mortadelle","VS13","Lundi à dimanche soirs","PAM04","1 paquet pour 2 repas","CAM13","dimanche 22 janvier 2023","VS-13",{"$f":"TabBDArticlesMenus[[#This Row],[Code nature article menu]]&TabBDArticlesMenus[[#This Row],[Nom article menu]]","v":"VSMortadelle"}]
["Création articles menus","CAM","Viande menu soir","VS","Œufs","VS14","Lundi à dimanche soirs","PAM04","1 boîte de 6 œufs. 3 œufs pour 1 repas","CAM02","dimanche 22 janvier 2023","VS-14",{"$f":"TabBDArticlesMenus[[#This Row],[Code nature article menu]]&TabBDArticlesMenus[[#This Row],[Nom article menu]]","v":"VSŒufs"}]
["Création articles menus","CAM","Viande menu soir","VS","Pizza","VS15","Lundi à dimanche soirs","PAM04","1 paquet pour 2 repas","CAM13","dimanche 22 janvier 2023","VS-15",{"$f":"TabBDArticlesMenus[[#This Row],[Code nature article menu]]&TabBDArticlesMenus[[#This Row],[Nom article menu]]","v":"VSPizza"}]
["Création articles menus","CAM","Viande menu soir","VS","Poisson","VS16","Lundi à dimanche soirs","PAM04","Unité : 1 pour 1 repas","CAM31","dimanche 22 janvier 2023","VS-16",{"$f":"TabBDArticlesMenus[[#This Row],[Code nature article menu]]&TabBDArticlesMenus[[#This Row],[Nom article menu]]","v":"VSPoisson"}]
["Création articles menus","CAM","Viande menu soir","VS","Quiche lorraine","VS17","Lundi à dimanche soirs","PAM04","1 paquet pour 2 repas","CAM13","dimanche 22 janvier 2023","VS-17",{"$f":"TabBDArticlesMenus[[#This Row],[Code nature article menu]]&TabBDArticlesMenus[[#This Row],[Nom article menu]]","v":"VSQuiche lorraine"}]
["Création articles menus","CAM","Viande menu soir","VS","Roulade à la pistache","VS18","Lundi à dimanche soirs","PAM04","3 tranches pour 1 repas","CAM26","dimanche 22 janvier 2023","VS-18",{"$f":"TabBDArticlesMenus[[#This Row],[Code nature article menu]]&TabBDArticlesMenus[[#This Row],[Nom article menu]]","v":"VSRoulade à la pistache"}]
["Création articles menus","CAM","Viande menu soir","VS","Roulé au fromage","VS19","Lundi à dimanche soirs","PAM04","1 boîte pour 2 repas","CAM05","dimanche 22 janvier 2023","VS-19",{"$f":"TabBDArticlesMenus[[#This Row],[Code nature article menu]]&TabBDArticlesMenus[[#This Row],[Nom article menu]]","v":"VSRoulé au fromage"}]
["Création articles menus","CAM","Viande menu soir","VS","Salami","VS20","Lundi à dimanche soirs","PAM04","1 paquet pour 2 repas","CAM13","dimanche 22 janvier 2023","VS-20",{"$f":"TabBDArticlesMenus[[#This Row],[Code nature article menu]]&TabBDArticlesMenus[[#This Row],[Nom article menu]]","v":"VSSalami"}]
["Création articles menus","CAM","Viande menu soir","VS","Saucisses","VS21","Lundi à dimanche soirs","PAM04","1 paquet pour 2 repas","CAM13","dimanche 22 janvier 2023","VS-21",{"$f":"TabBDArticlesMenus[[#This Row],[Code nature article menu]]&TabBDArticlesMenus[[#This Row],[Nom article menu]]","v":"VSSaucisses"}]
["Création articles menus","CAM","Viande menu soir","VS","Saucisson","VS22","Lundi à dimanche soirs","PAM04","1 sachet pour 6 repas. 5 tranches par repas (Saucisson)","CAM20","dimanche 22 janvier 2023","VS-22",{"$f":"TabBDArticlesMenus[[#This Row],[Code nature article menu]]&TabBDArticlesMenus[[#This Row],[Nom article menu]]","v":"VSSaucisson"}]
["Création articles menus","CAM","Viande menu soir","VS","Tête persillée","VS23","Lundi à dimanche soirs","PAM04","1 tranche pour 2 repas","CAM22","dimanche 22 janvier 2023","VS-23",{"$f":"TabBDArticlesMenus[[#This Row],[Code nature article menu]]&TabBDArticlesMenus[[#This Row],[Nom article menu]]","v":"VSTête persillée"}]
["Création articles menus","CAM","Viande menu soir","VS","Tête roulée","VS24","Lundi à dimanche soirs","PAM04","3 tranches pour 1 repas","CAM26","dimanche 22 janvier 2023","VS-24",{"$f":"TabBDArticlesMenus[[#This Row],[Code nature article menu]]&TabBDArticlesMenus[[#This Row],[Nom article menu]]","v":"VSTête roulée"}]
["Création articles menus","CAM","Viande menu soir","VS","Thon","VS25","Lundi à dimanche soirs","PAM04","1 boîte pour 1 repas","CAM04","dimanche 22 janvier 2023","VS-25",{"$f":"TabBDArticlesMenus[[#This Row],[Code nature article menu]]&TabBDArticlesMenus[[#This Row],[Nom article menu]]","v":"VSThon"}]
["Création articles menus","CAM","Viande menu soir","VS","Viande cassoulet","VS26","Lundi et mardi soirs","PAM07","1 boîte pour 2 repas","CAM05","dimanche 22 janvier 2023","VS-26",{"$f":"TabBDArticlesMenus[[#This Row],[Code nature article menu]]&TabBDArticlesMenus[[#This Row],[Nom article menu]]","v":"VSViande cassoulet"}]
["Création articles menus","CAM","Viande menu soir","VS","Viande choucroute","VS27","Lundi et mardi soirs","PAM07","1 boîte pour 2 repas","CAM05","dimanche 22 janvier 2023","VS-27",{"$f":"TabBDArticlesMenus[[#This Row],[Code nature article menu]]&TabBDArticlesMenus[[#This Row],[Nom article menu]]","v":"VSViande choucroute"}]
["Création articles menus","CAM","Viande menu soir","VS","Viande paella","VS28","Lundi et mardi soirs","PAM07","1 boîte pour 2 repas","CAM05","dimanche 22 janvier 2023","VS-28",{"$f":"TabBDArticlesMenus[[#This Row],[Code nature article menu]]&TabBDArticlesMenus[[#This Row],[Nom article menu]]","v":"VSViande paella"}]
[]
[]
["Colonnes A à K incluses : pour chaque ligne, les renseignements sont exacts. Colonne L : les renseignements donnés sont fantaisistes puisque dans le programme, grâce au tri et à la renumérotation, tout sera remis dans l'ordre normal."]
["Comme vous l'avez demandé, il y a des doublons. En réalité, cela ne sera pas possible puisque si un article existe, il est prévu un message pour me le signaler et décider si on le modifie ou le supprime."]

{"sheet":"BD menus","index":3,"n_rows":5,"n_cols":36,"rows_kept":5,"cut":false,"hidden":false,"merged":[]}
[]
["Nom nature création","Code nature création","Date menu","Date création menu","Nom menu légume","Code menu légume","Nom période menu légume","Code période menu légume","Nom conditionnement menu légume","Code conditionnement menu légume","Nom menu légume deux","Code menu légume deux","Nom période menu légume deux","Code période menu légume deux","Nom conditionnement menu légume deux","Code conditionnement menu légume deux","Quantité menu légume","Quantité menu légume deux","Nom menu viande","Code menu viande","Nom période menu viande","Code période menu viande","Nom conditionnement menu viande","Code conditionnement menu viande","Nom période menu viande midi weekend","Quantité menu viande","Nom menu dessert","Code menu dessert","Nom période menu dessert","Code période menu dessert","Nom conditionnement menu dessert","Code conditionnement menu dessert","Quantité menu dessert","Numéro création menu","Nom jour férié","Mois menu"]
["Menu midi retraite","MMR","2023-03-06","vendredi 3 mars 2023","Concombre","LMR","Lundi à vendredi midis","PAM05","Unité : 1 pour 1 repas","CAM31",null,null,null,null,null,null,1,null,"Rôti d'agneau","VMR","Lundi à vendredi midis","PAM05","1 morceau de 500 grammes pour 5 repas","CAM09",null,100,"Pomme","DMR","Lundi à vendredi midis","PAM05","1 sachet de 2 kilogrammes. 1 pomme pour 1 repas","CAM17",1,"MMR-01",null,"mars"]
["Menu midi retraite","MMR","2023-03-07","vendredi 3 mars 2023","Maïs","LMR","Lundi à vendredi midis","PAM05","1 boîte pour 2 repas","CAM05",null,null,null,null,null,null,0.5,null,"Rôti d'agneau","VMR","Lundi à vendredi midis","PAM05","1 morceau de 500 grammes pour 5 repas","CAM09",null,100,"Pomme","DMR","Lundi à vendredi midis","PAM05","1 sachet de 2 kilogrammes. 1 pomme pour 1 repas","CAM17",1,"MMR-02",null,"mars"]
["Menu midi retraite","MMR","2023-03-10","dimanche 5 mars 2023","Radis","LMR","Lundi à vendredi midis","PAM05","1 botte ou 1 sachet pour 2 repas","CAM07",null,null,null,null,null,null,0.5,null,"Rôti d'agneau","VMR","Lundi à vendredi midis","PAM05","1 morceau de 500 grammes pour 5 repas","CAM09",null,100,"Pomme","DMR","Lundi à vendredi midis","PAM05","1 sachet de 2 kilogrammes. 1 pomme pour 1 repas","CAM17",1,"MMR-03",null,"mars"]

{"sheet":"Menus midi retraite","index":4,"n_rows":52,"n_cols":8,"rows_kept":52,"cut":false,"hidden":false,"merged":[[44,0,44,7],[47,0,47,7],[48,0,48,7],[51,0,51,7],[35,0,35,7],[36,0,36,7],[39,0,39,7],[40,0,40,7],[43,0,43,7],[24,0,24,7],[27,0,27,7],[28,0,28,7],[31,0,31,7],[32,0,32,7],[15,0,15,7],[16,0,16,7],[19,0,19,7],[20,0,20,7],[23,0,23,7],[2,0,2,7],[5,0,5,7],[6,0,6,7],[9,0,9,7],[10,0,10,7]]}
[{"$f":"'Accueil création'!$F$1","v":2023}]
[]
[{"$f":"\"État des menus midi retraite du mois de janvier \"&$A$1&\".\"","v":"État des menus midi retraite du mois de janvier 2023."}]
["Date menu","Légume","Viande","Dessert","Jour férié","Destination","Numéro création menu","Mois"]
[]
[]
[{"$f":"\"État des menus midi retraite du mois de février \"&$A$1&\".\"","v":"État des menus midi retraite du mois de février 2023."}]
["Date menu","Légume","Viande","Dessert","Jour férié","Destination","Numéro création menu","Mois"]
[]
[{"$f":"\"Imprimé à Limeil-Brévannes, le \"&TEXT(TODAY(),\"jjjj j mmmm aaaa\")&\".\"","v":"Imprimé à Limeil-Brévannes, le mercredi 8 mars 2023."}]
[{"$f":"\"État des menus midi retraite du mois de mars \"&$A$1&\".\"","v":"État des menus midi retraite du mois de mars 2023."}]
["Date menu","Légume","Viande","Dessert","Jour férié","Destination","Numéro création menu","Mois"]
["2023-03-06","Concombre","Rôti d'agneau","Pomme",null,"Menu midi retraite","MMR-01","mars"]
["2023-03-07","Maïs","Rôti d'agneau","Pomme",null,"Menu midi retraite","MMR-02","mars"]
["2023-03-10","Radis","Rôti d'agneau","Pomme",null,"Menu midi retraite","MMR-03","mars"]
[{"$f":"\"Imprimé à Limeil-Brévannes, le \"&TEXT(TODAY(),\"jjjj j mmmm aaaa\")&\".\"","v":"Imprimé à Limeil-Brévannes, le mercredi 8 mars 2023."}]
[{"$f":"\"État des menus midi retraite du mois d'avril \"&$A$1&\".\"","v":"État des menus midi retraite du mois d'avril 2023."}]
["Date menu","Légume","Viande","Dessert","Jour férié","Destination","Numéro création menu","Mois"]
[]
[{"$f":"\"Imprimé à Limeil-Brévannes, le \"&TEXT(TODAY(),\"jjjj j mmmm aaaa\")&\".\"","v":"Imprimé à Limeil-Brévannes, le mercredi 8 mars 2023."}]
[{"$f":"\"État des menus midi retraite du mois de mai \"&$A$1&\".\"","v":"État des menus midi retraite du mois de mai 2023."}]
["Date menu","Légume","Viande","Dessert","Jour férié","Destination","Numéro création menu","Mois"]
[]
[{"$f":"\"Imprimé à Limeil-Brévannes, le \"&TEXT(TODAY(),\"jjjj j mmmm aaaa\")&\".\"","v":"Imprimé à Limeil-Brévannes, le mercredi 8 mars 2023."}]
[{"$f":"\"État des menus midi retraite du mois de juin \"&$A$1&\".\"","v":"État des menus midi retraite du mois de juin 2023."}]
["Date menu","Légume","Viande","Dessert","Jour férié","Destination","Numéro création menu","Mois"]
[]
[{"$f":"\"Imprimé à Limeil-Brévannes, le \"&TEXT(TODAY(),\"jjjj j mmmm aaaa\")&\".\"","v":"Imprimé à Limeil-Brévannes, le mercredi 8 mars 2023."}]
[{"$f":"\"État des menus midi retraite du mois de juillet \"&$A$1&\".\"","v":"État des menus midi retraite du mois de juillet 2023."}]
["Date menu","Légume","Viande","Dessert","Jour férié","Destination","Numéro création menu","Mois"]
[]
[{"$f":"\"Imprimé à Limeil-Brévannes, le \"&TEXT(TODAY(),\"jjjj j mmmm aaaa\")&\".\"","v":"Imprimé à Limeil-Brévannes, le mercredi 8 mars 2023."}]
[{"$f":"\"État des menus midi retraite du mois d'août \"&$A$1&\".\"","v":"État des menus midi retraite du mois d'août 2023."}]
["Date menu","Légume","Viande","Dessert","Jour férié","Destination","Numéro création menu","Mois"]
[]
[{"$f":"\"Imprimé à Limeil-Brévannes, le \"&TEXT(TODAY(),\"jjjj j mmmm aaaa\")&\".\"","v":"Imprimé à Limeil-Brévannes, le mercredi 8 mars 2023."}]
[{"$f":"\"État des menus midi retraite du mois de septembre \"&$A$1&\".\"","v":"État des menus midi retraite du mois de septembre 2023."}]
["Date menu","Légume","Viande","Dessert","Jour férié","Destination","Numéro création menu","Mois"]
[]
[{"$f":"\"Imprimé à Limeil-Brévannes, le \"&TEXT(TODAY(),\"jjjj j mmmm aaaa\")&\".\"","v":"Imprimé à Limeil-Brévannes, le mercredi 8 mars 2023."}]
[{"$f":"\"État des menus midi retraite du mois d'octobre \"&$A$1&\".\"","v":"État des menus midi retraite du mois d'octobre 2023."}]
["Date menu","Légume","Viande","Dessert","Jour férié","Destination","Numéro création menu","Mois"]
[]
[{"$f":"\"Imprimé à Limeil-Brévannes, le \"&TEXT(TODAY(),\"jjjj j mmmm aaaa\")&\".\"","v":"Imprimé à Limeil-Brévannes, le mercredi 8 mars 2023."}]
[{"$f":"\"État des menus midi retraite du mois de novembre \"&$A$1&\".\"","v":"État des menus midi retraite du mois de novembre 2023."}]
["Date menu","Légume","Viande","Dessert","Jour férié","Destination","Numéro création menu","Mois"]
[]
[{"$f":"\"Imprimé à Limeil-Brévannes, le \"&TEXT(TODAY(),\"jjjj j mmmm aaaa\")&\".\"","v":"Imprimé à Limeil-Brévannes, le mercredi 8 mars 2023."}]
[{"$f":"\"État des menus midi retraite du mois de décembre \"&$A$1&\".\"","v":"État des menus midi retraite du mois de décembre 2023."}]
["Date menu","Légume","Viande","Dessert","Jour férié","Destination","Numéro création menu","Mois"]
[]
[{"$f":"\"Imprimé à Limeil-Brévannes, le \"&TEXT(TODAY(),\"jjjj j mmmm aaaa\")&\".\"","v":"Imprimé à Limeil-Brévannes, le mercredi 8 mars 2023."}]

{"sheet":"Menus journaliers","index":5,"n_rows":53,"n_cols":9,"rows_kept":53,"cut":false,"hidden":false,"merged":[[28,0,28,8],[2,0,2,8],[5,0,5,8],[6,0,6,8],[12,0,12,8],[13,0,13,8],[16,0,16,8],[17,0,17,8],[20,0,20,8],[21,0,21,8],[24,0,24,8],[25,0,25,8],[52,0,52,8],[29,0,29,8],[32,0,32,8],[33,0,33,8],[36,0,36,8],[37,0,37,8],[40,0,40,8],[41,0,41,8],[44,0,44,8],[45,0,45,8],[48,0,48,8],[49,0,49,8]]}
[{"$f":"'Accueil création'!$F$1","v":2023}]
[]
[{"$f":"\"État des menus journaliers du mois de janvier \"&$A$1&\".\"","v":"État des menus journaliers du mois de janvier 2023."}]
["Date menu","Légume","Légume deux","Viande","Dessert","Jour férié","Destination","Numéro création menu","Mois"]
[]
[{"$f":"\"Imprimé à Limeil-Brévannes, le \"&TEXT(TODAY(),\"jjjj j mmmm aaaa\")&\".\"","v":"Imprimé à Limeil-Brévannes, le mercredi 8 mars 2023."}]
[{"$f":"\"État des menus journaliers du mois de février \"&$A$1&\".\"","v":"État des menus journaliers du mois de février 2023."}]
["Date menu","Légume","Légume deux","Viande","Dessert","Jour férié","Destination","Numéro création menu","Mois"]
["22 février 2023","Raviolis",null,null,null,null,"Menu journalier"]
["22 février 2023","Raviolis",null,"Fromage de tête",null,null,"Menu journalier"]
["22 février 2023","Raviolis",null,"Saucisson",null,null,"Menu journalier"]
["22 février 2023","Raviolis",null,"Fromage de tête","Pomme",null,"Menu journalier"]
[{"$f":"\"Imprimé à Limeil-Brévannes, le \"&TEXT(TODAY(),\"jjjj j mmmm aaaa\")&\".\"","v":"Imprimé à Limeil-Brévannes, le mercredi 8 mars 2023."}]
[{"$f":"\"État des menus journaliers du mois de mars \"&$A$1&\".\"","v":"État des menus journaliers du mois de mars 2023."}]
["Date menu","Légume","Légume deux","Viande","Dessert","Jour férié","Destination","Numéro création menu","Mois"]
[]
[{"$f":"\"Imprimé à Limeil-Brévannes, le \"&TEXT(TODAY(),\"jjjj j mmmm aaaa\")&\".\"","v":"Imprimé à Limeil-Brévannes, le mercredi 8 mars 2023."}]
[{"$f":"\"État des menus journaliers du mois d'avril \"&$A$1&\".\"","v":"État des menus journaliers du mois d'avril 2023."}]
["Date menu","Légume","Légume deux","Viande","Dessert","Jour férié","Destination","Numéro création menu","Mois"]
[]
[{"$f":"\"Imprimé à Limeil-Brévannes, le \"&TEXT(TODAY(),\"jjjj j mmmm aaaa\")&\".\"","v":"Imprimé à Limeil-Brévannes, le mercredi 8 mars 2023."}]
[{"$f":"\"État des menus journaliers du mois de mai \"&$A$1&\".\"","v":"État des menus journaliers du mois de mai 2023."}]
["Date menu","Légume","Légume deux","Viande","Dessert","Jour férié","Destination","Numéro création menu","Mois"]
[]
[{"$f":"\"Imprimé à Limeil-Brévannes, le \"&TEXT(TODAY(),\"jjjj j mmmm aaaa\")&\".\"","v":"Imprimé à Limeil-Brévannes, le mercredi 8 mars 2023."}]
[{"$f":"\"État des menus journaliers du mois de juin \"&$A$1&\".\"","v":"État des menus journaliers du mois de juin 2023."}]
["Date menu","Légume","Légume deux","Viande","Dessert","Jour férié","Destination","Numéro création menu","Mois"]
[]
[{"$f":"\"Imprimé à Limeil-Brévannes, le \"&TEXT(TODAY(),\"jjjj j mmmm aaaa\")&\".\"","v":"Imprimé à Limeil-Brévannes, le mercredi 8 mars 2023."}]
[{"$f":"\"État des menus journaliers du mois de juillet \"&$A$1&\".\"","v":"État des menus journaliers du mois de juillet 2023."}]
["Date menu","Légume","Légume deux","Viande","Dessert","Jour férié","Destination","Numéro création menu","Mois"]
[]
[{"$f":"\"Imprimé à Limeil-Brévannes, le \"&TEXT(TODAY(),\"jjjj j mmmm aaaa\")&\".\"","v":"Imprimé à Limeil-Brévannes, le mercredi 8 mars 2023."}]
[{"$f":"\"État des menus journaliers du mois d'août \"&$A$1&\".\"","v":"État des menus journaliers du mois d'août 2023."}]
["Date menu","Légume","Légume deux","Viande","Dessert","Jour férié","Destination","Numéro création menu","Mois"]
[]
[{"$f":"\"Imprimé à Limeil-Brévannes, le \"&TEXT(TODAY(),\"jjjj j mmmm aaaa\")&\".\"","v":"Imprimé à Limeil-Brévannes, le mercredi 8 mars 2023."}]
[{"$f":"\"État des menus journaliers du mois de septembre \"&$A$1&\".\"","v":"État des menus journaliers du mois de septembre 2023."}]
["Date menu","Légume","Légume deux","Viande","Dessert","Jour férié","Destination","Numéro création menu","Mois"]
[]
[{"$f":"\"Imprimé à Limeil-Brévannes, le \"&TEXT(TODAY(),\"jjjj j mmmm aaaa\")&\".\"","v":"Imprimé à Limeil-Brévannes, le mercredi 8 mars 2023."}]
[{"$f":"\"État des menus journaliers du mois d'octobre \"&$A$1&\".\"","v":"État des menus journaliers du mois d'octobre 2023."}]
["Date menu","Légume","Légume deux","Viande","Dessert","Jour férié","Destination","Numéro création menu","Mois"]
[]
[{"$f":"\"Imprimé à Limeil-Brévannes, le \"&TEXT(TODAY(),\"jjjj j mmmm aaaa\")&\".\"","v":"Imprimé à Limeil-Brévannes, le mercredi 8 mars 2023."}]
[{"$f":"\"État des menus journaliers du mois de novembre \"&$A$1&\".\"","v":"État des menus journaliers du mois de novembre 2023."}]
["Date menu","Légume","Légume deux","Viande","Dessert","Jour férié","Destination","Numéro création menu","Mois"]
[]
[{"$f":"\"Imprimé à Limeil-Brévannes, le \"&TEXT(TODAY(),\"jjjj j mmmm aaaa\")&\".\"","v":"Imprimé à Limeil-Brévannes, le mercredi 8 mars 2023."}]
[{"$f":"\"État des menus journaliers du mois de décembre \"&$A$1&\".\"","v":"État des menus journaliers du mois de décembre 2023."}]
["Date menu","Légume","Légume deux","Viande","Dessert","Jour férié","Destination","Numéro création menu","Mois"]
[]
[{"$f":"\"Imprimé à Limeil-Brévannes, le \"&TEXT(TODAY(),\"jjjj j mmmm aaaa\")&\".\"","v":"Imprimé à Limeil-Brévannes, le mercredi 8 mars 2023."}]

{"sheet":"Menus viande midi weekend","index":6,"n_rows":50,"n_cols":7,"rows_kept":50,"cut":false,"hidden":false,"merged":[[2,0,2,6],[5,0,5,6],[6,0,6,6],[9,0,9,6],[10,0,10,6],[13,0,13,6],[14,0,14,6],[17,0,17,6],[18,0,18,6],[21,0,21,6],[22,0,22,6],[25,0,25,6],[26,0,26,6],[29,0,29,6],[30,0,30,6],[42,0,42,6],[45,0,45,6],[46,0,46,6],[49,0,49,6],[33,0,33,6],[34,0,34,6],[37,0,37,6],[38,0,38,6],[41,0,41,6]]}
[{"$f":"'Accueil création'!$F$1","v":2023}]
[]
[{"$f":"\"État des menus viande midi weekend du mois de janvier \"&$A$1&\".\"","v":"État des menus viande midi weekend du mois de janvier 2023."}]
["Date menu","Viande","Jour férié","Destination","Numéro création","Nom période menu viande midi weekend","Mois"]
[]
[{"$f":"\"Imprimé à Limeil-Brévannes, le \"&TEXT(TODAY(),\"jjjj j mmmm aaaa\")&\".\"","v":"Imprimé à Limeil-Brévannes, le mercredi 8 mars 2023."}]
[{"$f":"\"État des menus viande midi weekend du mois de février \"&$A$1&\".\"","v":"État des menus viande midi weekend du mois de février 2023."}]
["Date menu","Viande","Jour férié","Destination","Numéro création","Nom période menu viande midi weekend","Mois"]
[]
[{"$f":"\"Imprimé à Limeil-Brévannes, le \"&TEXT(TODAY(),\"jjjj j mmmm aaaa\")&\".\"","v":"Imprimé à Limeil-Brévannes, le mercredi 8 mars 2023."}]
[{"$f":"\"État des menus viande midi weekend du mois de mars \"&$A$1&\".\"","v":"État des menus viande midi weekend du mois de mars 2023."}]
["Date menu","Viande","Jour férié","Destination","Numéro création","Nom période menu viande midi weekend","Mois"]
[]
[{"$f":"\"Imprimé à Limeil-Brévannes, le \"&TEXT(TODAY(),\"jjjj j mmmm aaaa\")&\".\"","v":"Imprimé à Limeil-Brévannes, le mercredi 8 mars 2023."}]
[{"$f":"\"État des menus viande midi weekend du mois d'avril \"&$A$1&\".\"","v":"État des menus viande midi weekend du mois d'avril 2023."}]
["Date menu","Viande","Jour férié","Destination","Numéro création","Nom période menu viande midi weekend","Mois"]
[]
[{"$f":"\"Imprimé à Limeil-Brévannes, le \"&TEXT(TODAY(),\"jjjj j mmmm aaaa\")&\".\"","v":"Imprimé à Limeil-Brévannes, le mercredi 8 mars 2023."}]
[{"$f":"\"État des menus viande midi weekend du mois de mai \"&$A$1&\".\"","v":"État des menus viande midi weekend du mois de mai 2023."}]
["Date menu","Viande","Jour férié","Destination","Numéro création","Nom période menu viande midi weekend","Mois"]
[]
[{"$f":"\"Imprimé à Limeil-Brévannes, le \"&TEXT(TODAY(),\"jjjj j mmmm aaaa\")&\".\"","v":"Imprimé à Limeil-Brévannes, le mercredi 8 mars 2023."}]
[{"$f":"\"État des menus viande midi weekend du mois de juin \"&$A$1&\".\"","v":"État des menus viande midi weekend du mois de juin 2023."}]
["Date menu","Viande","Jour férié","Destination","Numéro création","Nom période menu viande midi weekend","Mois"]
[]
[{"$f":"\"Imprimé à Limeil-Brévannes, le \"&TEXT(TODAY(),\"jjjj j mmmm aaaa\")&\".\"","v":"Imprimé à Limeil-Brévannes, le mercredi 8 mars 2023."}]
[{"$f":"\"État des menus viande midi weekend du mois de juillet \"&$A$1&\".\"","v":"État des menus viande midi weekend du mois de juillet 2023."}]
["Date menu","Viande","Jour férié","Destination","Numéro création","Nom période menu viande midi weekend","Mois"]
[]
[{"$f":"\"Imprimé à Limeil-Brévannes, le \"&TEXT(TODAY(),\"jjjj j mmmm aaaa\")&\".\"","v":"Imprimé à Limeil-Brévannes, le mercredi 8 mars 2023."}]
[{"$f":"\"État des menus viande midi weekend du mois d'août \"&$A$1&\".\"","v":"État des menus viande midi weekend du mois d'août 2023."}]
["Date menu","Viande","Jour férié","Destination","Numéro création","Nom période menu viande midi weekend","Mois"]
[]
[{"$f":"\"Imprimé à Limeil-Brévannes, le \"&TEXT(TODAY(),\"jjjj j mmmm aaaa\")&\".\"","v":"Imprimé à Limeil-Brévannes, le mercredi 8 mars 2023."}]
[{"$f":"\"État des menus viande midi weekend du mois de septembre \"&$A$1&\".\"","v":"État des menus viande midi weekend du mois de septembre 2023."}]
["Date menu","Viande","Jour férié","Destination","Numéro création","Nom période menu viande midi weekend","Mois"]
[]
[{"$f":"\"Imprimé à Limeil-Brévannes, le \"&TEXT(TODAY(),\"jjjj j mmmm aaaa\")&\".\"","v":"Imprimé à Limeil-Brévannes, le mercredi 8 mars 2023."}]
[{"$f":"\"État des menus viande midi weekend du mois d'octobre \"&$A$1&\".\"","v":"État des menus viande midi weekend du mois d'octobre 2023."}]
["Date menu","Viande","Jour férié","Destination","Numéro création","Nom période menu viande midi weekend","Mois"]
[]
[{"$f":"\"Imprimé à Limeil-Brévannes, le \"&TEXT(TODAY(),\"jjjj j mmmm aaaa\")&\".\"","v":"Imprimé à Limeil-Brévannes, le mercredi 8 mars 2023."}]
[{"$f":"\"État des menus viande midi weekend du mois de novembre \"&$A$1&\".\"","v":"État des menus viande midi weekend du mois de novembre 2023."}]
["Date menu","Viande","Jour férié","Destination","Numéro création","Nom période menu viande midi weekend","Mois"]
[]
[{"$f":"\"Imprimé à Limeil-Brévannes, le \"&TEXT(TODAY(),\"jjjj j mmmm aaaa\")&\".\"","v":"Imprimé à Limeil-Brévannes, le mercredi 8 mars 2023."}]
[{"$f":"\"État des menus viande midi weekend du mois de décembre \"&$A$1&\".\"","v":"État des menus viande midi weekend du mois de décembre 2023."}]
["Date menu","Viande","Jour férié","Destination","Numéro création","Nom période menu viande midi weekend","Mois"]
[]
[{"$f":"\"Imprimé à Limeil-Brévannes, le \"&TEXT(TODAY(),\"jjjj j mmmm aaaa\")&\".\"","v":"Imprimé à Limeil-Brévannes, le mercredi 8 mars 2023."}]